Payment Date,Invoice Reference,Net Amount,Irrecoverable VAT,Vendor,Expense Area Description,Expense Type,Expense Type Description,Revenue / Capital
03/04/2018,ARCV181435,516,0,Alliance Automotive UK CV Ltd T/a,FLEET MAINTENANCE,30001,Dir Cost-Spare Parts,Revenue
03/04/2018,38398,600,0,Appris Management Ltd,TRAINING DELIVERY,19243,Tech Svcs Tng,Revenue
03/04/2018,25506,1774.21,0,BCS Electrics Ltd,CASTLEFORD,21013,Electrical Reps (Fr),Revenue
03/04/2018,C/12/087695,890.38,0,Bradford MDC,BRADFORD,28502,Contract Cleaning,Revenue
03/04/2018,C/13/087834,890.38,0,Bradford MDC,BRADFORD,28502,Contract Cleaning,Revenue
03/04/2018,12667686,647.53,0,Corona Energy,Killingbeck,25001,Energy-Gas,Revenue
03/04/2018,12734099,1246.95,0,Corona Energy,Killingbeck,25001,Energy-Gas,Revenue
03/04/2018,12834307,882.83,0,Corona Energy,Killingbeck,25001,Energy-Gas,Revenue
03/04/2018,12905800,854.55,0,Corona Energy,Shipley New,25001,Energy-Gas,Revenue
03/04/2018,12905796,832.32,0,Corona Energy,Rastrick,25001,Energy-Gas,Revenue
03/04/2018,12901044,1032.2,0,Corona Energy,Ossett New,25001,Energy-Gas,Revenue
03/04/2018,12905785,1758.38,0,Corona Energy,NEW CONTROL PROJECT,25001,Energy-Gas,Revenue
03/04/2018,12905799,5461.67,0,Corona Energy,PROPERTY,25001,Energy-Gas,Revenue
03/04/2018,12905797,770.11,0,Corona Energy,Dewsbury New,25001,Energy-Gas,Revenue
03/04/2018,12905798,1191.4,0,Corona Energy,Killingbeck,25001,Energy-Gas,Revenue
03/04/2018,439206,942,0,Fumex Ltd,FLEET MAINTENANCE,21014,General Rep & Maint,Revenue
03/04/2018,404739,612.5,0,Garrards (Hudds) Ltd,Leeds Dist Com,40006,Training Equ Purch,Revenue
03/04/2018,2044402,1147.25,0,Giffard Newton & Sons Ltd,SUPPLIES SECTION,41500,Clothing,Revenue
03/04/2018,15617072,1000,0,JCT600 Body Clinic,FLEET MANAGEMENT,30006,Ins Claims Excess,Revenue
03/04/2018,8603760192,181041,0,Kirklees Council,FINANCE SECTION,55005,Strategic Finance,Revenue
03/04/2018,13800,645,0,Mitton Aftercare Ltd,Killingbeck,20000,Ann Contract/Service,Revenue
03/04/2018,13778,532.44,0,Mitton Aftercare Ltd,STANNINGLEY,20000,Ann Contract/Service,Revenue
03/04/2018,INV346,1980,0,OPS Environmental Services Ltd,NEW CONTROL PROJECT,21007,Asbestos/Hazard Mats,Revenue
03/04/2018,INV345,1320,0,OPS Environmental Services Ltd,FAIRWEATHER GREEN,21007,Asbestos/Hazard Mats,Revenue
03/04/2018,ISL147067,5586,0,QA Limited,TRAINING DELIVERY,19243,Tech Svcs Tng,Revenue
03/04/2018,104524,3349.38,0,Redfern Travel Ltd,FINANCE SECTION,35000,Public Transport,Revenue
03/04/2018,45762,889.95,0,Safequip Ltd,OPERATIONS EQUIPMENT,40005,Operational Equ Pch,Revenue
03/04/2018,15551,570,0,SmartStyle Training Ltd,TRAINING DELIVERY,19241,Service Supp Tng,Revenue
03/04/2018,3974,2290,0,The Outreach Organisation Ltd,TRAINING DELIVERY,19241,Service Supp Tng,Revenue
03/04/2018,52400776,660,0,Volvo Group Uk Ltd,Information Technlgy,43103,ICT Maintenance & Support,Revenue
03/04/2018,82770,767.36,0,Wm Sugden & Sons Ltd,SUPPLIES SECTION,41500,Clothing,Revenue
04/04/2018,46203,-1420,0,Access Doors Systems Ltd,BRADFORD,21006,Appliance Bay Doors,Revenue
04/04/2018,46172,1800,0,Access Doors Systems Ltd,BRADFORD,21006,Appliance Bay Doors,Revenue
04/04/2018,1497463-01,583.13,0,Crossroads Truck & Bus Ltd,FLEET MAINTENANCE,30001,Dir Cost-Spare Parts,Revenue
04/04/2018,1497591-01,520,0,Crossroads Truck & Bus Ltd,FLEET MAINTENANCE,30001,Dir Cost-Spare Parts,Revenue
04/04/2018,1141706,52732.81,0,Home Office,OPERATIONS,43026,Radio Licensing,Revenue
04/04/2018,1141706,2624.78,0,Home Office,OPERATIONS,43026,Radio Licensing,Revenue
04/04/2018,9.78118E+13,1376.25,0,Linde Material Handling,FLEET MAINTENANCE,32002,Vehicle & Plant Hire,Revenue
05/04/2018,25584,11673.41,0,BCS Electrics Ltd,CORPORATE MANAGEMENT & SUPPORT,59052,Cont-External,Capital
05/04/2018,26092,547.2,0,Crossley Evans Ltd,Mirfield Fire,28506,Refuse Collect/Disp,Revenue
05/04/2018,1599,2900,0,Dk Brown Associates,Mirfield Fire,42511,Consultancy Fees,Revenue
05/04/2018,20975,10500,0,Emergency One (Uk) Ltd,FLEET MAINTENANCE,30005,Workshop Equipment,Revenue
05/04/2018,116948,1485.54,0,Labcraft Ltd,FLEET MAINTENANCE,30001,Dir Cost-Spare Parts,Revenue
05/04/2018,44728040,525.5,0,Mitsubishi Electric Europe B.V,NEW CONTROL PROJECT,21013,Electrical Reps (Fr),Revenue
06/04/2018,A9980134261,5419.51,0,Ats Euromaster Ltd,FLEET MANAGEMENT,30000,Tyre Purchase,Revenue
06/04/2018,9608930,2883.76,0,Bayford Oil,HUDDERSFIELD,30200,Vehicle Fuel,Revenue
06/04/2018,25489,1044.26,0,BCS Electrics Ltd,VARIOUS,20000,Ann Contract/Service,Revenue
06/04/2018,31/03/2018,3636,0,Dr N A L Smith (Medical Services) L,Health & Safety,42510,Client Med Fees/Exps,Revenue
06/04/2018,20904,4712.93,0,Emergency One (Uk) Ltd,TRAINING DELIVERY,19238,Ops Res Tng,Revenue
06/04/2018,173372,1982.02,0,Hj Sock Group Ltd,SUPPLIES SECTION,41500,Clothing,Revenue
06/04/2018,UK-18-0000096,670.5,0,Jolly Safety Equipment Ltd,VARIOUS,40014,USAR - Ppe,Revenue
06/04/2018,EXI1138328,858.24,0,Lex Autolease,WATER OFFICE,34001,Vehicle Leasing,Revenue
06/04/2018,27-03-18-283-WYF,600,0,Margo Himsworth Training Services,TRAINING DELIVERY,19241,Service Supp Tng,Revenue
06/04/2018,INV01864292,1703.37,0,Softcat Ltd,Fire Safety Prev,45121,Safer Communities Programme Board,Revenue
06/04/2018,12489,11254.81,0,South Yorks Fire & Rescue,EMERGENCY SERV COMMS - PROGRAMME - REGIONAL,15001,Admin - Basic Pay,Revenue
06/04/2018,12440,10156.41,0,South Yorks Fire & Rescue,EMERGENCY SERV COMMS - PROGRAMME - REGIONAL,15001,Admin - Basic Pay,Revenue
06/04/2018,1718,604.21,0,Trafficlear Ltd,FLEET MANAGEMENT,34002,Vhcle Leas Misc Exp,Revenue
06/04/2018,87284157,5914.47,0,Vodafone (Mobiles),Information Technlgy,43017,Corporate Mobile Phone,Revenue
06/04/2018,83007,4416,0,Wm Sugden & Sons Ltd,SUPPLIES SECTION,41500,Clothing,Revenue
09/04/2018,3046394518,1534.33,0,British Oxygen Co Ltd,VARIOUS,40005,Operational Equ Pch,Revenue
09/04/2018,31126,1012.5,0,Huddersfield Saw & Tool Co Ltd,USAR,40014,USAR - Ppe,Revenue
09/04/2018,6281482395,31540.93,0,Leeds City Council,Fire Safety Prev,15001,Admin - Basic Pay,Revenue
09/04/2018,TSER452591,949.43,0,Lex Autolease,FLEET MANAGEMENT,34002,Vhcle Leas Misc Exp,Revenue
09/04/2018,INV0533729,12169,0,Posturite UK Ltd,CORPORATE MANAGEMENT & SUPPORT,59164,Equipment,Capital
09/04/2018,65530651000000X,1387.42,0,Yorkshire Water,CORPORATE MANAGEMENT & SUPPORT,59164,Equipment,Capital
09/04/2018,6.55307E+14,601.99,0,Yorkshire Water,CORPORATE MANAGEMENT & SUPPORT,59164,Equipment,Capital
09/04/2018,6.55307E+14,601.99,0,Yorkshire Water,CORPORATE MANAGEMENT & SUPPORT,59164,Equipment,Capital
09/04/2018,6.55311E+14,931.64,0,Yorkshire Water,CORPORATE MANAGEMENT & SUPPORT,59164,Equipment,Capital
09/04/2018,6.55311E+14,931.64,0,Yorkshire Water,CORPORATE MANAGEMENT & SUPPORT,59164,Equipment,Capital
09/04/2018,6.55255E+14,665.99,0,Yorkshire Water,CORPORATE MANAGEMENT & SUPPORT,59164,Equipment,Capital
09/04/2018,6.55311E+14,1444.42,0,Yorkshire Water,CORPORATE MANAGEMENT & SUPPORT,59164,Equipment,Capital
09/04/2018,6.55307E+14,601.99,0,Yorkshire Water,CORPORATE MANAGEMENT & SUPPORT,59164,Equipment,Capital
09/04/2018,6.55312E+14,649.99,0,Yorkshire Water,CORPORATE MANAGEMENT & SUPPORT,59164,Equipment,Capital
09/04/2018,6.55307E+14,666.99,0,Yorkshire Water,CORPORATE MANAGEMENT & SUPPORT,59164,Equipment,Capital
09/04/2018,6.55307E+14,844.66,0,Yorkshire Water,CORPORATE MANAGEMENT & SUPPORT,59164,Equipment,Capital
09/04/2018,6.55307E+14,844.66,0,Yorkshire Water,CORPORATE MANAGEMENT & SUPPORT,59164,Equipment,Capital
09/04/2018,6.55311E+14,1387.42,0,Yorkshire Water,CORPORATE MANAGEMENT & SUPPORT,59164,Equipment,Capital
09/04/2018,6.55312E+14,601.99,0,Yorkshire Water,CORPORATE MANAGEMENT & SUPPORT,59164,Equipment,Capital
09/04/2018,6.55311E+14,931.64,0,Yorkshire Water,CORPORATE MANAGEMENT & SUPPORT,59164,Equipment,Capital
09/04/2018,6.55312E+14,601.99,0,Yorkshire Water,CORPORATE MANAGEMENT & SUPPORT,59164,Equipment,Capital
09/04/2018,6.55307E+14,649.99,0,Yorkshire Water,CORPORATE MANAGEMENT & SUPPORT,59164,Equipment,Capital
09/04/2018,6.55307E+14,601.99,0,Yorkshire Water,CORPORATE MANAGEMENT & SUPPORT,59164,Equipment,Capital
09/04/2018,6.55311E+14,931.64,0,Yorkshire Water,CORPORATE MANAGEMENT & SUPPORT,59164,Equipment,Capital
09/04/2018,65531153000000X,568.84,0,Yorkshire Water,CORPORATE MANAGEMENT & SUPPORT,59164,Equipment,Capital
09/04/2018,6.55311E+14,649.99,0,Yorkshire Water,CORPORATE MANAGEMENT & SUPPORT,59164,Equipment,Capital
09/04/2018,6.55311E+14,1387.42,0,Yorkshire Water,CORPORATE MANAGEMENT & SUPPORT,59164,Equipment,Capital
09/04/2018,6.55311E+14,656.99,0,Yorkshire Water,CORPORATE MANAGEMENT & SUPPORT,59164,Equipment,Capital
09/04/2018,6.55311E+14,931.64,0,Yorkshire Water,CORPORATE MANAGEMENT & SUPPORT,59164,Equipment,Capital
09/04/2018,6.55311E+14,931.64,0,Yorkshire Water,CORPORATE MANAGEMENT & SUPPORT,59164,Equipment,Capital
09/04/2018,6.55307E+14,844.66,0,Yorkshire Water,CORPORATE MANAGEMENT & SUPPORT,59164,Equipment,Capital
09/04/2018,6.55311E+14,931.64,0,Yorkshire Water,CORPORATE MANAGEMENT & SUPPORT,59164,Equipment,Capital
09/04/2018,65531136000000X,931.64,0,Yorkshire Water,CORPORATE MANAGEMENT & SUPPORT,59164,Equipment,Capital
09/04/2018,6.55311E+14,931.64,0,Yorkshire Water,CORPORATE MANAGEMENT & SUPPORT,59164,Equipment,Capital
10/04/2018,2910118831,13070,0,Draeger Ltd,TRAINING DELIVERY,40006,Training Equ Purch,Revenue
10/04/2018,20931,2388.05,0,Emergency One (Uk) Ltd,TRAINING DELIVERY,19243,Tech Svcs Tng,Revenue
10/04/2018,965621,800,0,Gritit Ltd,PROPERTY,24000,Grounds Maintenance,Revenue
10/04/2018,TK122098,4315.9,0,Thomas Kneale & Co Ltd,Fire Safety Prev,45108,Fire Prevn Pblcty,Revenue
11/04/2018,KL2286,1820,0,K.L Spectator Seating,TRAINING DELIVERY,40100,Furniture,Revenue
11/04/2018,22120,4085.42,0,Mitton Mechanical Services Ltd,CORPORATE MANAGEMENT & SUPPORT,59052,Cont-External,Capital
11/04/2018,11969,46945,0,R-Com Consulting,CORPORATE MANAGEMENT & SUPPORT,59166,Computer Costs,Capital
11/04/2018,6.55298E+14,665.99,0,Yorkshire Water,CORPORATE MANAGEMENT & SUPPORT,59164,Equipment,Capital
11/04/2018,6.55311E+14,931.64,0,Yorkshire Water,CORPORATE MANAGEMENT & SUPPORT,59164,Equipment,Capital
11/04/2018,6.55311E+14,931.64,0,Yorkshire Water,CORPORATE MANAGEMENT & SUPPORT,59164,Equipment,Capital
12/04/2018,813013468,16142.99,0,Easynet Enterprise Services Ltd,VARIOUS,43018,Wan Rental,Revenue
12/04/2018,1000355,2100,0,Lees Auto Spares,TRAINING DELIVERY,40025,Scrap Cars Purch,Revenue
12/04/2018,135503,2585,0,Physio Med Ltd,Health & Safety,18301,Specialists Fees,Revenue
12/04/2018,16425,960,0,Prometheus Medical Ltd,TRAINING DELIVERY,40006,Training Equ Purch,Revenue
12/04/2018,11997,44870,0,R-Com Consulting,CORPORATE MANAGEMENT & SUPPORT,59166,Computer Costs,Capital
16/04/2018,B-15369,700,0,Acorn Analytical Services Ltd,NEW CONTROL PROJECT,21007,Asbestos/Hazard Mats,Revenue
16/04/2018,B-15346,700,0,Acorn Analytical Services Ltd,FAIRWEATHER GREEN,21007,Asbestos/Hazard Mats,Revenue
16/04/2018,25381,4927.66,0,BCS Electrics Ltd,BRADFORD,21013,Electrical Reps (Fr),Revenue
16/04/2018,25493,552.05,0,BCS Electrics Ltd,MIRFIELD,21013,Electrical Reps (Fr),Revenue
16/04/2018,965622,1465,0,Gritit Ltd,VARIOUS,24000,Grounds Maintenance,Revenue
16/04/2018,965620,1318.73,0,Gritit Ltd,VARIOUS,24000,Grounds Maintenance,Revenue
16/04/2018,29132,1275,0,Northern Pump Distributors,COOKRIDGE,21014,General Rep & Maint,Revenue
16/04/2018,652,625,0,SJ Facilities,KEIGHLEY,21014,General Rep & Maint,Revenue
16/04/2018,6012622,3202.18,0,Stormsaver,NEW CONTROL PROJECT,21014,General Rep & Maint,Revenue
17/04/2018,46310,3166,0,Access Doors Systems Ltd,VARIOUS,20000,Ann Contract/Service,Revenue
17/04/2018,SCR503160,-3012,0,AXA PPP Healthcare,Health & Safety,18301,Specialists Fees,Revenue
17/04/2018,SIN532147,9036.05,0,AXA PPP Healthcare,Health & Safety,18301,Specialists Fees,Revenue
17/04/2018,25384,1043.64,0,BCS Electrics Ltd,CORPORATE MANAGEMENT & SUPPORT,59052,Cont-External,Capital
17/04/2018,BC-03-18-S1968,16555.38,0,Bristol Care,SUPPLIES SECTION,41900,Laundry,Revenue
17/04/2018,140443,27197.45,0,Goliath Footwear Ltd,SUPPLIES SECTION,41500,Clothing,Revenue
17/04/2018,2344,66298.05,0,K2 Mechanical & Electrical Services,CORPORATE MANAGEMENT & SUPPORT,59052,Cont-External,Capital
17/04/2018,MJA01136,615.7,0,Mja Consultants,NORMANTON,21013,Electrical Reps (Fr),Revenue
17/04/2018,PI027688,600,0,Salford Professional Development,Corporate Governance,19203,Non Uniformed,Revenue
17/04/2018,13.03.2018,1000,0,Sleningford Watermill Caravan and C,TRAINING DELIVERY,19241,Service Supp Tng,Revenue
17/04/2018,6.55322E+14,778.84,0,Yorkshire Water,CORPORATE MANAGEMENT & SUPPORT,59164,Equipment,Capital
17/04/2018,6.55331E+14,665.99,0,Yorkshire Water,CORPORATE MANAGEMENT & SUPPORT,59164,Equipment,Capital
17/04/2018,6.55307E+14,1387.42,0,Yorkshire Water,CORPORATE MANAGEMENT & SUPPORT,59164,Equipment,Capital
17/04/2018,6.55331E+14,931.64,0,Yorkshire Water,CORPORATE MANAGEMENT & SUPPORT,59164,Equipment,Capital
17/04/2018,6.55331E+14,931.64,0,Yorkshire Water,CORPORATE MANAGEMENT & SUPPORT,59164,Equipment,Capital
17/04/2018,6.55322E+14,663.99,0,Yorkshire Water,CORPORATE MANAGEMENT & SUPPORT,59164,Equipment,Capital
17/04/2018,6.55322E+14,991.64,0,Yorkshire Water,CORPORATE MANAGEMENT & SUPPORT,59164,Equipment,Capital
17/04/2018,6.55322E+14,991.64,0,Yorkshire Water,CORPORATE MANAGEMENT & SUPPORT,59164,Equipment,Capital
17/04/2018,65532240000000X,623.84,0,Yorkshire Water,CORPORATE MANAGEMENT & SUPPORT,59164,Equipment,Capital
18/04/2018,104718,2525.25,0,Redfern Travel Ltd,Fire Safety Prev,43500,Subsistence Allowncs,Revenue
19/04/2018,E2009556177,3814.75,0,Allstar Business Solutions Ltd,VARIOUS,30200,Vehicle Fuel,Revenue
20/04/2018,B-15876,2200,0,Acorn Analytical Services Ltd,CORPORATE MANAGEMENT & SUPPORT,59058,Fee-External,Capital
20/04/2018,25598,3712.61,0,BCS Electrics Ltd,CORPORATE MANAGEMENT & SUPPORT,59052,Cont-External,Capital
20/04/2018,SS128,5320,0,D Ellis Services,VARIOUS,20000,Ann Contract/Service,Revenue
20/04/2018,SI138126,529.6,0,Dale Power Solutions Ltd,BRADFORD,21013,Electrical Reps (Fr),Revenue
20/04/2018,1600,500,0,Dk Brown Associates,CORPORATE MANAGEMENT & SUPPORT,59052,Cont-External,Capital
20/04/2018,20180320-868,3700,0,Fire Investigations (Uk) Llp,TRAINING DELIVERY,19240,Prot/Prev Tng,Revenue
20/04/2018,969223,800,0,Gritit Ltd,PROPERTY,24000,Grounds Maintenance,Revenue
20/04/2018,1863,3000,0,Lk Management Ltd,PROPERTY,42511,Consultancy Fees,Revenue
20/04/2018,MJA01138,804.85,0,Mja Consultants,HUDDERSFIELD,21013,Electrical Reps (Fr),Revenue
20/04/2018,I8062196,3250,0,Pageone Communications Ltd,CORPORATE MANAGEMENT & SUPPORT,59166,Computer Costs,Capital
20/04/2018,I0045672,7858.03,0,Pulse Cashflow Finance,VARIOUS,28502,Contract Cleaning,Revenue
20/04/2018,I0045670,5047.51,0,Pulse Cashflow Finance,VARIOUS,28502,Contract Cleaning,Revenue
20/04/2018,I0045671,830.49,0,Pulse Cashflow Finance,PONTEFRACT,28502,Contract Cleaning,Revenue
20/04/2018,10045669,4082.84,0,Pulse Cashflow Finance,VARIOUS,28502,Contract Cleaning,Revenue
20/04/2018,INV-1550(W1604-0,747.5,0,Robert Whetham Associates,PONTEFRACT,21013,Electrical Reps (Fr),Revenue
20/04/2018,INV-1553(W1603-0,747.5,0,Robert Whetham Associates,BRADFORD,21013,Electrical Reps (Fr),Revenue
20/04/2018,INV-1566(W1678-0,575,0,Robert Whetham Associates,BRADFORD,42511,Consultancy Fees,Revenue
20/04/2018,INV1555(W826-07,1797,0,Robert Whetham Associates,PROPERTY,42511,Consultancy Fees,Revenue
20/04/2018,INV-1567(W1683-0,1150,0,Robert Whetham Associates,CORPORATE MANAGEMENT & SUPPORT,59058,Fee-External,Capital
20/04/2018,18-R1748,649,0,Weber Rescue Uk Ltd,OPERATIONS EQUIPMENT,40005,Operational Equ Pch,Revenue
23/04/2018,INV02473,6006,0,3Tc Software Ltd,Information Technlgy,43103,ICT Maintenance & Support,Revenue
23/04/2018,R12289,2955,0,Airmax Remote,Information Technlgy,43103,ICT Maintenance & Support,Revenue
23/04/2018,25610,1457.64,0,BCS Electrics Ltd,PROPERTY,21013,Electrical Reps (Fr),Revenue
23/04/2018,5550,2911,0,Geckops Ltd t/a Gecko Property Solu,TRAINING DELIVERY,21014,General Rep & Maint,Revenue
23/04/2018,IN26372,2960,0,Gremedia Screenprint Ltd,WATER OFFICE,40027,Hydrants Repair,Revenue
23/04/2018,116971,1151.1,0,Keela International Ltd,SUPPLIES SECTION,41500,Clothing,Revenue
23/04/2018,LM:INV-1839,2200,0,Leeds Mind,TRAINING DELIVERY,19241,Service Supp Tng,Revenue
23/04/2018,1000356,560,0,Lees Auto Spares,Killingbeck,40025,Scrap Cars Purch,Revenue
23/04/2018,18062346,4538.56,0,Pageone Communications Ltd,Information Technlgy,43022,ICT Spares & Repairs,Revenue
24/04/2018,46383,560,0,Access Doors Systems Ltd,HUNSLET,21006,Appliance Bay Doors,Revenue
24/04/2018,SND00001177,3696,0,AON Limited Accounts Division,FINANCE SECTION,42508,Central Insurances,Revenue
24/04/2018,SRD00002119,11477.76,0,AON Limited Accounts Division,FINANCE SECTION,42508,Central Insurances,Revenue
24/04/2018,SND00001173,392000,0,AON Limited Accounts Division,EMPLOYEE RESOURCING,18300,Employee Insurance,Revenue
24/04/2018,SRD00002115,64924.16,0,AON Limited Accounts Division,FINANCE SECTION,42508,Central Insurances,Revenue
24/04/2018,SND00001160,15947.68,0,AON Limited Accounts Division,FINANCE SECTION,42508,Central Insurances,Revenue
24/04/2018,SND00001178,6440,0,AON Limited Accounts Division,FINANCE SECTION,42508,Central Insurances,Revenue
24/04/2018,SND00001176,43120,0,AON Limited Accounts Division,FINANCE SECTION,42508,Central Insurances,Revenue
24/04/2018,SND00001158,6500,0,AON Limited Accounts Division,FINANCE SECTION,42508,Central Insurances,Revenue
24/04/2018,SRD00002118,4368,0,AON Limited Accounts Division,FINANCE SECTION,42508,Central Insurances,Revenue
24/04/2018,SND00001156,9240,0,AON Limited Accounts Division,EMPLOYEE RESOURCING,18300,Employee Insurance,Revenue
24/04/2018,CSL17145,520,0,Chief Fire Officers Assoc,OPERATIONS TEAM,43501,Conference Expenses,Revenue
24/04/2018,SL0936,1200.92,0,Colin Peel,Information Technlgy,43103,ICT Maintenance & Support,Revenue
24/04/2018,407119,6106.2,0,Garrards (Hudds) Ltd,TRAINING DELIVERY,40006,Training Equ Purch,Revenue
24/04/2018,90418,3500,0,Middleton Green Exec Resourcin,TRAINING DELIVERY,19241,Service Supp Tng,Revenue
24/04/2018,9468,1000,0,Praxis42 Limited,TRAINING DELIVERY,19241,Service Supp Tng,Revenue
24/04/2018,9361,515,0,Rosenbauer UK PLC,OPERATIONS EQUIPMENT,40005,Operational Equ Pch,Revenue
24/04/2018,8953,644.6,0,Wharfedale Construction Co Ltd,ILLINGWORTH,21014,General Rep & Maint,Revenue
25/04/2018,25637,830.26,0,BCS Electrics Ltd,RAWDON,21013,Electrical Reps (Fr),Revenue
25/04/2018,IWYHMCPD001,1600,0,Green Risk Assessment Ltd,TRAINING DELIVERY,19239,Ops Supp Tng,Revenue
25/04/2018,I0020464,1928,0,Merseyside Fire & Rescue Authority,TRAINING DELIVERY,19239,Ops Supp Tng,Revenue
25/04/2018,23371,18000,0,Thornley & Lumb Partnership Ltd,PROPERTY,42511,Consultancy Fees,Revenue
25/04/2018,23372,8250,0,Thornley & Lumb Partnership Ltd,PROPERTY,42511,Consultancy Fees,Revenue
26/04/2018,ARCV184641,516,0,Alliance Automotive UK CV Ltd T/a,FLEET MAINTENANCE,30001,Dir Cost-Spare Parts,Revenue
26/04/2018,5538,3731,0,Geckops Ltd t/a Gecko Property Solu,HUDDERSFIELD,21014,General Rep & Maint,Revenue
26/04/2018,4638,525,0,Kjc Technik,FLEET MAINTENANCE,30005,Workshop Equipment,Revenue
26/04/2018,58388,2513.5,0,"Richardson Bus Equip Dist Ltd,",LEEDS,40010,Station Devt Equpmnt,Revenue
26/04/2018,INV024185,3700,0,Swiftclean (UK) Ltd,PROPERTY,42511,Consultancy Fees,Revenue
26/04/2018,23381,1800,0,Thornley & Lumb Partnership Ltd,Meltham,42511,Consultancy Fees,Revenue
27/04/2018,46475,1260,0,Access Doors Systems Ltd,FLEET MAINTENANCE,21006,Appliance Bay Doors,Revenue
27/04/2018,13168,4365.96,0,Ashwell Engineering Services,TRAINING DELIVERY,21012,Heating & Mechanical,Revenue
27/04/2018,12211,918,0,Bahson Colour Print Ltd,Fire Safety Prev,45108,Fire Prevn Pblcty,Revenue
27/04/2018,12222,879,0,Bahson Colour Print Ltd,Fire Safety Prev,45108,Fire Prevn Pblcty,Revenue
27/04/2018,12208,1298,0,Bahson Colour Print Ltd,Fire Safety Prev,45108,Fire Prevn Pblcty,Revenue
27/04/2018,12209,1533,0,Bahson Colour Print Ltd,Fire Safety Prev,45108,Fire Prevn Pblcty,Revenue
27/04/2018,25659,765.33,0,BCS Electrics Ltd,TRAINING DELIVERY,21013,Electrical Reps (Fr),Revenue
27/04/2018,7131/04921223,638.39,0,Buck & Hickman Ltd,FLEET MAINTENANCE,30002,Consumables-Veh Rep,Revenue
27/04/2018,57695,10200,0,Electromec Access,Meltham,21006,Appliance Bay Doors,Revenue
27/04/2018,5539,5283,0,Geckops Ltd t/a Gecko Property Solu,KEIGHLEY,21014,General Rep & Maint,Revenue
27/04/2018,1008455317,770.35,0,Hays Specialist Recruitment,FINANCE SECTION,15001,Admin - Basic Pay,Revenue
27/04/2018,1008515670,708.99,0,Hays Specialist Recruitment,FINANCE SECTION,15001,Admin - Basic Pay,Revenue
27/04/2018,1008414692,688.98,0,Hays Specialist Recruitment,FINANCE SECTION,15001,Admin - Basic Pay,Revenue
27/04/2018,1008473665,580.58,0,Hays Specialist Recruitment,FINANCE SECTION,15001,Admin - Basic Pay,Revenue
27/04/2018,1008496000,558.26,0,Hays Specialist Recruitment,FINANCE SECTION,15001,Admin - Basic Pay,Revenue
27/04/2018,1008433017,509.95,0,Hays Specialist Recruitment,FINANCE SECTION,15001,Admin - Basic Pay,Revenue
27/04/2018,229234,3888.5,0,M I Supplies Ltd,SUPPLIES SECTION,41500,Clothing,Revenue
27/04/2018,14513,1138.84,0,Mitton Aftercare Ltd,TRAINING DELIVERY,20000,Ann Contract/Service,Revenue
27/04/2018,45598,1950,0,Safequip Ltd,CORPORATE MANAGEMENT & SUPPORT,59164,Equipment,Capital
27/04/2018,9020446,-2800,0,Sprue Safety Products,CORPORATE MANAGEMENT & SUPPORT,59164,Equipment,Capital
27/04/2018,1116998,44250,0,Sprue Safety Products,CORPORATE MANAGEMENT & SUPPORT,59164,Equipment,Capital
27/04/2018,35094943,566.24,0,Volkswagen Van Centre,FLEET MANAGEMENT,30004,Rep-Ext Contractors,Revenue
30/04/2018,201804,900,0,Daniels Caf�,TRAINING DELIVERY,40502,Food,Revenue
30/04/2018,3790214254,2000,0,Linde Jewsbury'S Limited,TRAINING DELIVERY,19243,Tech Svcs Tng,Revenue
01/05/2018,25599,4050.3,0,BCS Electrics Ltd,Mirfield Fire,21014,General Rep & Maint,Revenue
01/05/2018,40157940,12946.88,0,Local Government Association,Corporate Governance,44502,AMA Grant,Revenue
01/05/2018,147290,767.41,0,Londonderry Garage Ltd,FLEET MAINTENANCE,30001,Dir Cost-Spare Parts,Revenue
01/05/2018,14518,926.37,0,Mitton Aftercare Ltd,TRAINING DELIVERY,20000,Ann Contract/Service,Revenue
01/05/2018,349456,1050,0,New Park Court Chambers,FIRE LEGAL,42587,Legal Expenses,Revenue
01/05/2018,32818,1173.27,0,Supply +,FLEET MAINTENANCE,30001,Dir Cost-Spare Parts,Revenue
02/05/2018,OP/I039912,3952.92,0,Angloco Ltd,TRAINING DELIVERY,19243,Tech Svcs Tng,Revenue
02/05/2018,107991,6319.25,0,Apea,TRAINING DELIVERY,19240,Prot/Prev Tng,Revenue
02/05/2018,INV1551,2410,0,Archer & Stone,VARIOUS,20000,Ann Contract/Service,Revenue
02/05/2018,9698306,2482.25,0,Bayford Oil,LEEDS,30200,Vehicle Fuel,Revenue
02/05/2018,25657,926.06,0,BCS Electrics Ltd,TRAINING DELIVERY,21013,Electrical Reps (Fr),Revenue
02/05/2018,1497649-01,634.04,0,Crossroads Truck & Bus Ltd,FLEET MAINTENANCE,30001,Dir Cost-Spare Parts,Revenue
02/05/2018,SS129,7396,0,D Ellis Services,VARIOUS,20000,Ann Contract/Service,Revenue
02/05/2018,969222,1318.73,0,Gritit Ltd,VARIOUS,24000,Grounds Maintenance,Revenue
02/05/2018,8603889455,1025.15,0,Kirklees Council,PROPERTY,28506,Refuse Collect/Disp,Revenue
02/05/2018,8603889484,1158.3,0,Kirklees Council,PROPERTY,28506,Refuse Collect/Disp,Revenue
02/05/2018,1000354,560,0,Lees Auto Spares,STANNINGLEY,40025,Scrap Cars Purch,Revenue
02/05/2018,MRI6772931,55750.92,0,Lex Autolease,VARIOUS,34001,Vehicle Leasing,Revenue
02/05/2018,1068577,593,0,Pickfords,CORPORATE MANAGEMENT & SUPPORT,59052,Cont-External,Capital
02/05/2018,137,3000,0,Talklogic Limited,Information Technlgy,43103,ICT Maintenance & Support,Revenue
02/05/2018,SW013,1350,0,United Kingdom Rescue Organisation,TRAINING DELIVERY,19241,Service Supp Tng,Revenue
02/05/2018,19-R1022,18214.41,0,Weber Rescue Uk Ltd,OPERATIONS EQUIPMENT,40005,Operational Equ Pch,Revenue
03/05/2018,3838164,150009.86,0,Insight Direct (UK) Ltd,Information Technlgy,43103,ICT Maintenance & Support,Revenue
03/05/2018,MRI6799686,41503.8,3599.31,Lex Autolease,VARIOUS,34001,Vehicle Leasing,Revenue
03/05/2018,6007129909,11851,0,SAP (UK) Ltd,Information Technlgy,43030,SAP running Costs,Revenue
03/05/2018,88921,3152.95,0,Townley Network Solutions Ltd,VARIOUS,43018,Wan Rental,Revenue
03/05/2018,30399,7470.75,0,Waterfront Manufacturing Ltd,RECRUITS,41500,Clothing,Revenue
03/05/2018,8957,12882.4,0,Wharfedale Construction Co Ltd,CORPORATE MANAGEMENT & SUPPORT,59052,Cont-External,Capital
04/05/2018,46533,870,0,Access Doors Systems Ltd,ILKLEY,21006,Appliance Bay Doors,Revenue
04/05/2018,1069,1666,0,Advanced Monitoring Limited,PROPERTY,20000,Ann Contract/Service,Revenue
04/05/2018,1074,590,0,Advanced Monitoring Limited,PROPERTY,21014,General Rep & Maint,Revenue
04/05/2018,463291G,1982.7,0,Arena Group Limited,CORPORATE SERVICES,42201,Photocopier Charges,Revenue
04/05/2018,1498052-01,634.04,0,Crossroads Truck & Bus Ltd,FLEET MAINTENANCE,30001,Dir Cost-Spare Parts,Revenue
04/05/2018,969224,1465,0,Gritit Ltd,VARIOUS,24000,Grounds Maintenance,Revenue
04/05/2018,14092,564.39,0,Mitton Aftercare Ltd,Ossett New,21012,Heating & Mechanical,Revenue
04/05/2018,MJA01143,1147.95,0,Mja Consultants,KEIGHLEY,21013,Electrical Reps (Fr),Revenue
04/05/2018,2195,1148,0,Rh Environmental Services Ltd,PROPERTY,21014,General Rep & Maint,Revenue
04/05/2018,8973,1145.9,0,Wharfedale Construction Co Ltd,South Kirkby,21014,General Rep & Maint,Revenue
08/05/2018,25631,713.61,0,BCS Electrics Ltd,FAIRWEATHER GREEN,21013,Electrical Reps (Fr),Revenue
08/05/2018,MJA01145,650,0,Mja Consultants,BRADFORD,21013,Electrical Reps (Fr),Revenue
08/05/2018,326.17.18,2087.15,0,Opinion Research Services Ltd,CORPORATE SERVICES,43000,Investments,Revenue
08/05/2018,324.17.18,2541.5,0,Opinion Research Services Ltd,CORPORATE SERVICES,43000,Investments,Revenue
08/05/2018,INV-1536,1178.75,0,Robert Whetham Associates,TRAINING DELIVERY,20000,Ann Contract/Service,Revenue
08/05/2018,1731,604.21,0,Trafficlear Ltd,FLEET MANAGEMENT,34002,Vhcle Leas Misc Exp,Revenue
08/05/2018,1730,604.21,0,Trafficlear Ltd,FLEET MANAGEMENT,34002,Vhcle Leas Misc Exp,Revenue
09/05/2018,46482,580,0,Access Doors Systems Ltd,HALIFAX,21006,Appliance Bay Doors,Revenue
09/05/2018,B-16570,675,0,Acorn Analytical Services Ltd,PROPERTY,21007,Asbestos/Hazard Mats,Revenue
09/05/2018,SMAI007137,2297.4,0,Babcock Critical Serv Ltd (Ma),USAR,30009,Long Term Capability Management,Revenue
09/05/2018,9656146,2225.96,0,Bayford Oil,HUDDERSFIELD,25002,Energy-Fuel Oil,Revenue
09/05/2018,3151688,9183.46,0,Bristol Uniforms Ltd,TRAINING DELIVERY,40006,Training Equ Purch,Revenue
09/05/2018,C384377,-666.67,0,Cyclescheme Ltd,CORPORATE MANAGEMENT & SUPPORT,59164,Equipment,Capital
09/05/2018,C385006,-833.33,0,Cyclescheme Ltd,CORPORATE MANAGEMENT & SUPPORT,59164,Equipment,Capital
09/05/2018,C385861,-749.17,0,Cyclescheme Ltd,CORPORATE MANAGEMENT & SUPPORT,59164,Equipment,Capital
09/05/2018,C387681,-833.33,0,Cyclescheme Ltd,CORPORATE MANAGEMENT & SUPPORT,59164,Equipment,Capital
09/05/2018,C392009,-833.33,0,Cyclescheme Ltd,CORPORATE MANAGEMENT & SUPPORT,59164,Equipment,Capital
09/05/2018,W385330,833.33,0,Cyclescheme Ltd,CORPORATE MANAGEMENT & SUPPORT,59164,Equipment,Capital
09/05/2018,W385741,749.17,0,Cyclescheme Ltd,CORPORATE MANAGEMENT & SUPPORT,59164,Equipment,Capital
09/05/2018,300418,3181.5,0,Dr N A L Smith (Medical Services) L,Health & Safety,42510,Client Med Fees/Exps,Revenue
09/05/2018,40157469,1975,0,Local Government Association,CORPORATE SERVICES,43501,Conference Expenses,Revenue
09/05/2018,40158330,2180,0,Local Government Association,CORPORATE SERVICES,43501,Conference Expenses,Revenue
09/05/2018,6.55331E+14,1387.42,0,Yorkshire Water,Killingbeck,21014,General Rep & Maint,Revenue
10/05/2018,0940000048-065D,1198.52,0,Airwave Solutions Ltd,Information Technlgy,43026,Radio Licensing,Revenue
10/05/2018,E2009616292,2779.17,0,Allstar Business Solutions Ltd,VARIOUS,30200,Vehicle Fuel,Revenue
10/05/2018,38396,633,0,Ask,SUPPLIES SECTION,40003,Admin/Office Equ Pch,Revenue
10/05/2018,26409,732,0,Crossley Evans Ltd,BRADFORD,21014,General Rep & Maint,Revenue
10/05/2018,26411,1320,0,Crossley Evans Ltd,PROPERTY,28506,Refuse Collect/Disp,Revenue
10/05/2018,5235,895.23,0,Fire Hosetech,OPERATIONS EQUIPMENT,40005,Operational Equ Pch,Revenue
10/05/2018,321460,575,0,Qualsafe.Com,Fire Safety Prev,45122,CSP Arson & RTC Hub,Revenue
10/05/2018,91467355,835,0,Serco Ltd,TRAINING DELIVERY,19243,Tech Svcs Tng,Revenue
10/05/2018,1117329,3000,0,Sprue Safety Products,CORPORATE MANAGEMENT & SUPPORT,59164,Equipment,Capital
10/05/2018,1117316,31500,0,Sprue Safety Products,CORPORATE MANAGEMENT & SUPPORT,59164,Equipment,Capital
11/05/2018,26414,751.2,0,Crossley Evans Ltd,USAR,28506,Refuse Collect/Disp,Revenue
11/05/2018,26412,595.2,0,Crossley Evans Ltd,TRAINING DELIVERY,28506,Refuse Collect/Disp,Revenue
14/05/2018,8970,1731.4,0,Wharfedale Construction Co Ltd,CORPORATE MANAGEMENT & SUPPORT,59052,Cont-External,Capital
14/05/2018,6.55311E+14,931.64,0,Yorkshire Water,CORPORATE MANAGEMENT & SUPPORT,59164,Equipment,Capital
14/05/2018,6.55311E+14,931.64,0,Yorkshire Water,CORPORATE MANAGEMENT & SUPPORT,59164,Equipment,Capital
14/05/2018,6.55322E+14,653.09,0,Yorkshire Water,CORPORATE MANAGEMENT & SUPPORT,59164,Equipment,Capital
14/05/2018,65533131000000X,1387.42,0,Yorkshire Water,CORPORATE MANAGEMENT & SUPPORT,59164,Equipment,Capital
15/05/2018,63993,5341,0,Advanced Industial Solutions Ltd,TRAINING DELIVERY,19243,Tech Svcs Tng,Revenue
15/05/2018,25754,1085.54,0,BCS Electrics Ltd,STANNINGLEY,21013,Electrical Reps (Fr),Revenue
15/05/2018,631367-0001,979.65,0,Breathing Equipment Hire Ltd,OPERATIONS EQUIPMENT,40005,Operational Equ Pch,Revenue
15/05/2018,3151707,1324.82,0,Bristol Uniforms Ltd,USAR,40014,USAR - Ppe,Revenue
15/05/2018,INV-0016,2340,0,Clean Kitchen Limited,RECRUITS,40502,Food,Revenue
15/05/2018,172501,905.9,0,Cmt Flexibles Ltd,OPERATIONS EQUIPMENT,40005,Operational Equ Pch,Revenue
15/05/2018,1498100-01,591.22,0,Crossroads Truck & Bus Ltd,FLEET MAINTENANCE,30001,Dir Cost-Spare Parts,Revenue
15/05/2018,1499072-01,849.16,0,Crossroads Truck & Bus Ltd,FLEET MAINTENANCE,30001,Dir Cost-Spare Parts,Revenue
15/05/2018,1499140-01,889.53,0,Crossroads Truck & Bus Ltd,FLEET MAINTENANCE,30001,Dir Cost-Spare Parts,Revenue
15/05/2018,1499077-01,1104.65,0,Crossroads Truck & Bus Ltd,FLEET MAINTENANCE,30001,Dir Cost-Spare Parts,Revenue
15/05/2018,69762,528,0,Foulds Lifts,TRAINING DELIVERY,21013,Electrical Reps (Fr),Revenue
15/05/2018,15876446,763,0,Hss Hire Service Group Ltd,PROPERTY,21012,Heating & Mechanical,Revenue
15/05/2018,12.04.2018,1000,0,Humber Rescue,TRAINING DELIVERY,19241,Service Supp Tng,Revenue
15/05/2018,40218996,6185.97,0,Improvement and Development Agency,Corporate Governance,44502,AMA Grant,Revenue
15/05/2018,40217440,2428.11,0,Improvement and Development Agency,Corporate Governance,44502,AMA Grant,Revenue
15/05/2018,OI305975,1552.5,0,James Burrell Ltd,USAR,40015,USAR - Timber,Revenue
15/05/2018,2018-0011,517,0,Keith Taylor,FINANCE SECTION,15001,Admin - Basic Pay,Revenue
15/05/2018,1000362,2100,0,Lees Auto Spares,TRAINING DELIVERY,40006,Training Equ Purch,Revenue
15/05/2018,1000361,2100,0,Lees Auto Spares,TRAINING DELIVERY,40006,Training Equ Purch,Revenue
15/05/2018,EXI1142491,794.96,0,Lex Autolease,VARIOUS,34001,Vehicle Leasing,Revenue
15/05/2018,ICE510848,534,0,QA Limited,TRAINING DELIVERY,19241,Service Supp Tng,Revenue
15/05/2018,RSLSI18002252,559.8,0,Radiocoms System Ltd (Lon),OPERATIONS EQUIPMENT,40005,Operational Equ Pch,Revenue
15/05/2018,14317/1,3175.6,0,Rance Booth & Smith Architects,PROPERTY,42511,Consultancy Fees,Revenue
15/05/2018,INV220789,1209.75,0,Refreshment Systems Ltd,TRAINING DELIVERY,40502,Food,Revenue
15/05/2018,6171784,10010,0,Ricardo-Aea Limited,Information Technlgy,43103,ICT Maintenance & Support,Revenue
15/05/2018,INV-1586,687.5,0,Robert Whetham Associates,ODSAL,42511,Consultancy Fees,Revenue
15/05/2018,9413,1866,0,Rosenbauer UK PLC,SUPPLIES SECTION,41500,Clothing,Revenue
15/05/2018,8040177833,3325,0,Sharp Business Systems UK Plc,Mirfield Fire,21013,Electrical Reps (Fr),Revenue
15/05/2018,510915,602.91,0,Tees Active Limited,TRAINING DELIVERY,19241,Service Supp Tng,Revenue
15/05/2018,4019,1155,0,The Outreach Organisation Ltd,TRAINING DELIVERY,19241,Service Supp Tng,Revenue
15/05/2018,4035,775,0,The Outreach Organisation Ltd,TRAINING DELIVERY,19241,Service Supp Tng,Revenue
15/05/2018,1046,1110,0,Voluntary Action Calderdale,Fire Safety Prev,40221,Publty/Promtn/Media,Revenue
15/05/2018,30480,1440,0,Waterfront Manufacturing Ltd,RECRUITS,41500,Clothing,Revenue
15/05/2018,SINV056465,923.12,0,Woodway Engineering Ltd,FLEET MAINTENANCE,30001,Dir Cost-Spare Parts,Revenue
16/05/2018,63203,1100,0,Advanced Industial Solutions Ltd,TRAINING DELIVERY,19243,Tech Svcs Tng,Revenue
16/05/2018,414287,4223.19,0,B B N Fastnet,VARIOUS,30002,Consumables-Veh Rep,Revenue
16/05/2018,25753,927.2,0,BCS Electrics Ltd,WAKEFIELD,21013,Electrical Reps (Fr),Revenue
16/05/2018,INV104036,800,0,Bells Domestics,TRAINING DELIVERY,40006,Training Equ Purch,Revenue
16/05/2018,3046868416,1646.97,0,British Oxygen Co Ltd,VARIOUS,40005,Operational Equ Pch,Revenue
16/05/2018,1940294,236.36,0,DWF LLP,FIRE LEGAL,42587,Legal Expenses,Revenue
16/05/2018,813014081,16134.22,0,Easynet Enterprise Services Ltd,VARIOUS,43018,Wan Rental,Revenue
16/05/2018,812642,7650,0,Fire Service College Limited,TRAINING DELIVERY,19241,Service Supp Tng,Revenue
16/05/2018,1137216619,911.81,0,Konica Minolta,NEW CONTROL PROJECT,42201,Photocopier Charges,Revenue
16/05/2018,320877,1124.5,0,Licence Bureau Ltd,DRIVING SCHOOL,40009,Licence Bureau Checks,Revenue
16/05/2018,9701,2372,0,T Kirk Forestry,National Resilience Distributed Learning,45119,USAR Chainsaw Recert,Revenue
16/05/2018,5868,2295,0,Turner Virr & Co Ltd,RECRUITS,41500,Clothing,Revenue
18/05/2018,25393,1302.75,0,BCS Electrics Ltd,Killingbeck,21013,Electrical Reps (Fr),Revenue
18/05/2018,1499302-01,2936.67,0,Crossroads Truck & Bus Ltd,FLEET MAINTENANCE,30001,Dir Cost-Spare Parts,Revenue
18/05/2018,21033,550,0,Emergency One (Uk) Ltd,FLEET MANAGEMENT,30004,Rep-Ext Contractors,Revenue
18/05/2018,INV-1569,3605.66,0,Robert Whetham Associates,PROPERTY,42511,Consultancy Fees,Revenue
18/05/2018,1752,604.21,0,Trafficlear Ltd,FLEET MANAGEMENT,34002,Vhcle Leas Misc Exp,Revenue
21/05/2018,8041859,2211.4,0,Angus Fire Ltd,OPERATIONS EQUIPMENT,40005,Operational Equ Pch,Revenue
21/05/2018,38758,619,0,Ask,CONTROL,40003,Admin/Office Equ Pch,Revenue
21/05/2018,9703094,2978.7,0,Bayford Oil,BRADFORD,30200,Vehicle Fuel,Revenue
21/05/2018,9698118,9929,0,Bayford Oil,TRAINING DELIVERY,30200,Vehicle Fuel,Revenue
21/05/2018,9714973,2483.24,0,Bayford Oil,Slaithwaite,30200,Vehicle Fuel,Revenue
21/05/2018,25756,15654.24,0,BCS Electrics Ltd,CORPORATE MANAGEMENT & SUPPORT,59052,Cont-External,Capital
21/05/2018,25760,36851.73,0,BCS Electrics Ltd,CORPORATE MANAGEMENT & SUPPORT,59052,Cont-External,Capital
21/05/2018,25627,1699.93,0,BCS Electrics Ltd,LEEDS,21013,Electrical Reps (Fr),Revenue
21/05/2018,1275027,1500,0,Blackboard International B.V.,Central Staffing Tm,43022,ICT Spares & Repairs,Revenue
21/05/2018,3387,545,0,Cafe Perfection,NEW CONTROL PROJECT,21013,Electrical Reps (Fr),Revenue
21/05/2018,IN18039800,1134.2,0,Calderdale Met Borough Council,HALIFAX,21014,General Rep & Maint,Revenue
21/05/2018,2019325,900,0,Cleanbright (Leeds) Ltd,PROPERTY,28500,Window Cleaning,Revenue
21/05/2018,1499018-01,684.93,0,Crossroads Truck & Bus Ltd,FLEET MAINTENANCE,30001,Dir Cost-Spare Parts,Revenue
21/05/2018,SI1277202,1340,0,H C Slingsby Plc,Information Technlgy,43022,ICT Spares & Repairs,Revenue
21/05/2018,1141995,55357.59,0,Home Office,OPERATIONS,43026,Radio Licensing,Revenue
21/05/2018,117834,3811.47,0,Keela International Ltd,SUPPLIES SECTION,41500,Clothing,Revenue
21/05/2018,229531,21822.4,0,M I Supplies Ltd,SUPPLIES SECTION,41500,Clothing,Revenue
21/05/2018,135947,3060,0,Physio Med Ltd,Health & Safety,18301,Specialists Fees,Revenue
21/05/2018,12065,10800,0,R-Com Consulting,Information Technlgy,43103,ICT Maintenance & Support,Revenue
21/05/2018,105041,2458.97,0,Redfern Travel Ltd,FINANCE SECTION,35000,Public Transport,Revenue
21/05/2018,6007132320,-6097,0,SAP (UK) Ltd,Information Technlgy,43030,SAP running Costs,Revenue
21/05/2018,6007132322,35866,0,SAP (UK) Ltd,Information Technlgy,43030,SAP running Costs,Revenue
21/05/2018,45791,3696,0,The Safety Letterbox Co Ltd,Fire Safety Prev,45108,Fire Prevn Pblcty,Revenue
21/05/2018,MIN0147976,960.64,0,Truck Parts (North Wales),FLEET MAINTENANCE,30001,Dir Cost-Spare Parts,Revenue
21/05/2018,8975,865.2,0,Wharfedale Construction Co Ltd,MIRFIELD,21014,General Rep & Maint,Revenue
21/05/2018,83956,883.2,0,Wm Sugden & Sons Ltd,SUPPLIES SECTION,41500,Clothing,Revenue
22/05/2018,969720,800,0,Gritit Ltd,PROPERTY,24000,Grounds Maintenance,Revenue
22/05/2018,5244338532,639.5,0,Honeywell,OPERATIONS EQUIPMENT,40005,Operational Equ Pch,Revenue
22/05/2018,SI-43,1830,0,Lima Solutions Ltd,CORPORATE MANAGEMENT & SUPPORT,59165,Vehicles & Plant,Capital
22/05/2018,INV-11051,13375,0,Nimble Group IT Limited,Information Technlgy,43103,ICT Maintenance & Support,Revenue
22/05/2018,36128,2040,0,Redtronic Ltd,FLEET MANAGEMENT,34002,Vhcle Leas Misc Exp,Revenue
22/05/2018,27680,2245,0,Sanderson Associates (Ce) Ltd,CORPORATE MANAGEMENT & SUPPORT,59058,Fee-External,Capital
22/05/2018,30425,1200,0,Waterfront Manufacturing Ltd,RECRUITS,41500,Clothing,Revenue
23/05/2018,38784,2557.27,0,Ask,VARIOUS,42100,Stationery,Revenue
23/05/2018,38875,1017.69,0,Ask,SUPPLIES SECTION,41900,Laundry,Revenue
23/05/2018,CFOA4732,51152,0,Chief Fire Officers Association,VARIOUS,44600,Subscriptions,Revenue
23/05/2018,SPI-010749,11764.14,0,Claranet Group T/A Sec-1 Ltd,Information Technlgy,43103,ICT Maintenance & Support,Revenue
23/05/2018,140739,3120,0,Goliath Footwear Ltd,SUPPLIES SECTION,41500,Clothing,Revenue
23/05/2018,140738,2742.6,0,Goliath Footwear Ltd,SUPPLIES SECTION,41500,Clothing,Revenue
23/05/2018,IN217482,890,0,K Steels Ltd,USAR,40015,USAR - Timber,Revenue
23/05/2018,KL 2304,910,0,K.L Spectator Seating,TRAINING DELIVERY,40100,Furniture,Revenue
23/05/2018,KL 2299,910,0,K.L Spectator Seating,TRAINING DELIVERY,40100,Furniture,Revenue
23/05/2018,41711,720,0,Leeds Pallet Co.Ltd.,TRAINING DELIVERY,40006,Training Equ Purch,Revenue
23/05/2018,TSER454529,1251.72,0,Lex Autolease,FLEET MANAGEMENT,34002,Vhcle Leas Misc Exp,Revenue
23/05/2018,40153539,545,0,Local Government Association,CORPORATE SERVICES,43501,Conference Expenses,Revenue
23/05/2018,14036028,1395.9,0,Palm Equipment Int Ltd,OPERATIONS EQUIPMENT,40005,Operational Equ Pch,Revenue
23/05/2018,65098,666.5,0,Saville Assessment Ltd,EMPLOYMENT SERVICES,42539,Professional Service,Revenue
23/05/2018,87584686,6190.8,0,Vodafone (Mobiles),Information Technlgy,43017,Corporate Mobile Phone,Revenue
23/05/2018,347,19809.21,0,Watershed (Roofing) Ltd,CORPORATE MANAGEMENT & SUPPORT,59052,Cont-External,Capital
23/05/2018,312,29767.43,0,Watershed (Roofing) Ltd,CORPORATE MANAGEMENT & SUPPORT,59052,Cont-External,Capital
25/05/2018,46782,590,0,Access Doors Systems Ltd,BINGLEY,21006,Appliance Bay Doors,Revenue
25/05/2018,38992,1865,0,Ask,TRAINING DELIVERY,40100,Furniture,Revenue
25/05/2018,25770,963.09,0,BCS Electrics Ltd,PROPERTY,21013,Electrical Reps (Fr),Revenue
25/05/2018,BC-04-18-S1983,18524.51,0,Bristol Care,SUPPLIES SECTION,41900,Laundry,Revenue
25/05/2018,SL0938,1200.92,0,Colin Peel,Information Technlgy,43103,ICT Maintenance & Support,Revenue
25/05/2018,SCN-3204-002067,-11040,0,Hargreaves (UK) Services Ltd,CORPORATE MANAGEMENT & SUPPORT,59058,Fee-External,Capital
25/05/2018,SIN-3204-033846,13340,0,Hargreaves (UK) Services Ltd,CORPORATE MANAGEMENT & SUPPORT,59058,Fee-External,Capital
25/05/2018,1008537293,708.99,0,Hays Specialist Recruitment,FINANCE SECTION,15001,Admin - Basic Pay,Revenue
25/05/2018,Aug-18,6800,0,JM Hazmat Consultancy Ltd,TRAINING DELIVERY,19239,Ops Supp Tng,Revenue
25/05/2018,13515,784.26,0,Mitton Aftercare Ltd,Slaithwaite,21012,Heating & Mechanical,Revenue
25/05/2018,MC/157,795,0,Montgomery & Coupers Ltd,TRAINING DELIVERY,19241,Service Supp Tng,Revenue
25/05/2018,16802,1522.4,0,Ruth Lee Ltd,Leeds Dist Com,40006,Training Equ Purch,Revenue
25/05/2018,89000065102,800,0,West Yorkshire Pension Fund,FINANCE SECTION,40205,Book/Publications,Revenue
29/05/2018,932925089,1640.76,0,Arco Group,SUPPLIES SECTION,41500,Clothing,Revenue
29/05/2018,C/01/087963,913.23,0,Bradford MDC,FAIRWEATHER GREEN,28502,Contract Cleaning,Revenue
29/05/2018,C/01/087959,570.77,0,Bradford MDC,KEIGHLEY,28502,Contract Cleaning,Revenue
29/05/2018,C/01/087962,507.31,0,Bradford MDC,ODSAL,28502,Contract Cleaning,Revenue
29/05/2018,6410,700.5,0,Computaform(UK)Ltd T/A LecoComputer,SUPPLIES SECTION,43106,ICT Consumables,Revenue
29/05/2018,1499562-01,998.76,0,Crossroads Truck & Bus Ltd,FLEET MAINTENANCE,30001,Dir Cost-Spare Parts,Revenue
29/05/2018,1499741-01,849.16,0,Crossroads Truck & Bus Ltd,FLEET MAINTENANCE,30001,Dir Cost-Spare Parts,Revenue
29/05/2018,2330,3180,0,Jt Services Group,VARIOUS,20000,Ann Contract/Service,Revenue
29/05/2018,RACR263269,-2654.96,-212.47,Lex Autolease,OPERATIONS TEAM,34001,Vehicle Leasing,Revenue
29/05/2018,RACR264492,-529.89,-49.57,Lex Autolease,OPERATIONS TEAM,34001,Vehicle Leasing,Revenue
29/05/2018,MRI6894546,7394.17,689.51,Lex Autolease,VARIOUS,34001,Vehicle Leasing,Revenue
29/05/2018,1862,2702,0,Lk Management Ltd,IRMP,42590,Shipley,Revenue
29/05/2018,YO-IN01844,970,0,Nbc Bird & Pest Solutions Ltd,PROPERTY,21014,General Rep & Maint,Revenue
29/05/2018,YO-IN01800,970,0,Nbc Bird & Pest Solutions Ltd,PROPERTY,21014,General Rep & Maint,Revenue
29/05/2018,C903276,-815.2,0,Southcombe Brothers Ltd,SUPPLIES SECTION,41500,Clothing,Revenue
29/05/2018,145131,4649.3,0,Southcombe Brothers Ltd,SUPPLIES SECTION,41500,Clothing,Revenue
29/05/2018,9694,945,0,T Kirk Forestry,National Resilience Distributed Learning,45119,USAR Chainsaw Recert,Revenue
30/05/2018,C/01/087960,507.31,0,Bradford MDC,Shipley New,28502,Contract Cleaning,Revenue
30/05/2018,C/01/087968,507.31,0,Bradford MDC,BRADFORD,28502,Contract Cleaning,Revenue
30/05/2018,C/01/087964,1014.69,0,Bradford MDC,BRADFORD,28502,Contract Cleaning,Revenue
30/05/2018,12991877,4411.87,0,Corona Energy,PROPERTY,25001,Energy-Gas,Revenue
30/05/2018,1500126-01,769.4,0,Crossroads Truck & Bus Ltd,FLEET MAINTENANCE,30001,Dir Cost-Spare Parts,Revenue
30/05/2018,1500122-01,2675.98,0,Crossroads Truck & Bus Ltd,FLEET MAINTENANCE,30001,Dir Cost-Spare Parts,Revenue
30/05/2018,1500084-01,867.17,0,Crossroads Truck & Bus Ltd,FLEET MAINTENANCE,30001,Dir Cost-Spare Parts,Revenue
30/05/2018,NC11644,6037,0,Gallagher Bassett International Ltd,FINANCE SECTION,42508,Central Insurances,Revenue
30/05/2018,1831971219,676,0,Karcher (UK) Ltd,FLEET MAINTENANCE,30005,Workshop Equipment,Revenue
30/05/2018,INV16806,3580,0,Leading Edge Creative Design Ltd,RECRUITS,40221,Publty/Promtn/Media,Revenue
30/05/2018,9725,1238,0,T Kirk Forestry,National Resilience Distributed Learning,45119,USAR Chainsaw Recert,Revenue
30/05/2018,505554,524.12,0,Teacherboards,VARIOUS,40010,Station Devt Equpmnt,Revenue
30/05/2018,TK122519,5168.2,0,Thomas Kneale & Co Ltd,Fire Safety Prev,45108,Fire Prevn Pblcty,Revenue
30/05/2018,400195,1582,0,Vimpex Limited,OPERATIONS EQUIPMENT,40005,Operational Equ Pch,Revenue
30/05/2018,52401848,660,0,Volvo Group Uk Ltd,Information Technlgy,43103,ICT Maintenance & Support,Revenue
31/05/2018,1874,2500,0,Aire Valley Tree Services Ltd,PROPERTY,21014,General Rep & Maint,Revenue
31/05/2018,4613,990,0,Allansound Communications,VARIOUS,20000,Ann Contract/Service,Revenue
31/05/2018,E2009669154,2914.43,0,Allstar Business Solutions Ltd,VARIOUS,30200,Vehicle Fuel,Revenue
31/05/2018,9765479,3038.7,0,Bayford Oil,PONTEFRACT,30200,Vehicle Fuel,Revenue
31/05/2018,9778087,3545.15,0,Bayford Oil,Dewsbury New,30200,Vehicle Fuel,Revenue
31/05/2018,25803,732.43,0,BCS Electrics Ltd,Cleckheaton,21013,Electrical Reps (Fr),Revenue
31/05/2018,25768,2184,0,BCS Electrics Ltd,PROPERTY,21013,Electrical Reps (Fr),Revenue
31/05/2018,969719,1318.73,0,Gritit Ltd,VARIOUS,24000,Grounds Maintenance,Revenue
31/05/2018,KL2294,1820,0,K.L Spectator Seating,CORPORATE SERVICES,40215,Annual Review,Revenue
31/05/2018,EXI1148914,858.24,0,Lex Autolease,WATER OFFICE,34001,Vehicle Leasing,Revenue
31/05/2018,YO-IN01848,970,0,Nbc Bird & Pest Solutions Ltd,PROPERTY,21014,General Rep & Maint,Revenue
31/05/2018,646,540,0,SJ Facilities,RAWDON,21014,General Rep & Maint,Revenue
31/05/2018,89438,3121.3,0,Townley Network Solutions Ltd,VARIOUS,43018,Wan Rental,Revenue
01/06/2018,1500378-01,1179.03,0,Crossroads Truck & Bus Ltd,FLEET MAINTENANCE,30001,Dir Cost-Spare Parts,Revenue
01/06/2018,283529,9255.75,0,Medtree,CORPORATE MANAGEMENT & SUPPORT,59164,Equipment,Capital
01/06/2018,10198,870,0,West Yorkshire Windscreens Ltd,FLEET MANAGEMENT,30004,Rep-Ext Contractors,Revenue
01/06/2018,6.55364E+14,649.11,0,Yorkshire Water,CORPORATE MANAGEMENT & SUPPORT,59164,Equipment,Capital
01/06/2018,6.55363E+14,601.99,0,Yorkshire Water,CORPORATE MANAGEMENT & SUPPORT,59164,Equipment,Capital
01/06/2018,6.55363E+14,665.99,0,Yorkshire Water,CORPORATE MANAGEMENT & SUPPORT,59164,Equipment,Capital
01/06/2018,6.55363E+14,601.99,0,Yorkshire Water,CORPORATE MANAGEMENT & SUPPORT,59164,Equipment,Capital
01/06/2018,6.55363E+14,665.99,0,Yorkshire Water,CORPORATE MANAGEMENT & SUPPORT,59164,Equipment,Capital
01/06/2018,6.55363E+14,649.11,0,Yorkshire Water,CORPORATE MANAGEMENT & SUPPORT,59164,Equipment,Capital
01/06/2018,6.55363E+14,649.99,0,Yorkshire Water,CORPORATE MANAGEMENT & SUPPORT,59164,Equipment,Capital
01/06/2018,6.55363E+14,633.84,0,Yorkshire Water,CORPORATE MANAGEMENT & SUPPORT,59164,Equipment,Capital
01/06/2018,6.55362E+14,1500.42,0,Yorkshire Water,CORPORATE MANAGEMENT & SUPPORT,59164,Equipment,Capital
01/06/2018,65536255000000X,601.99,0,Yorkshire Water,CORPORATE MANAGEMENT & SUPPORT,59164,Equipment,Capital
01/06/2018,6.55364E+14,931.64,0,Yorkshire Water,CORPORATE MANAGEMENT & SUPPORT,59164,Equipment,Capital
01/06/2018,6.55363E+14,661.99,0,Yorkshire Water,CORPORATE MANAGEMENT & SUPPORT,59164,Equipment,Capital
01/06/2018,6.55362E+14,1449.42,0,Yorkshire Water,CORPORATE MANAGEMENT & SUPPORT,59164,Equipment,Capital
01/06/2018,6.55363E+14,616.84,0,Yorkshire Water,CORPORATE MANAGEMENT & SUPPORT,59164,Equipment,Capital
01/06/2018,6.55364E+14,901.66,0,Yorkshire Water,CORPORATE MANAGEMENT & SUPPORT,59164,Equipment,Capital
01/06/2018,6.55363E+14,665.99,0,Yorkshire Water,CORPORATE MANAGEMENT & SUPPORT,59164,Equipment,Capital
01/06/2018,6.55363E+14,619.21,0,Yorkshire Water,CORPORATE MANAGEMENT & SUPPORT,59164,Equipment,Capital
04/06/2018,OP/I040072,6543.51,0,Angloco Ltd,FLEET MANAGEMENT,30004,Rep-Ext Contractors,Revenue
04/06/2018,OP/1040076,3952.92,0,Angloco Ltd,TRAINING DELIVERY,19243,Tech Svcs Tng,Revenue
04/06/2018,9796358,3052.5,0,Bayford Oil,KEIGHLEY,30200,Vehicle Fuel,Revenue
04/06/2018,2369,32051.65,0,K2 Mechanical & Electrical Services,CORPORATE MANAGEMENT & SUPPORT,59052,Cont-External,Capital
04/06/2018,1000370,2100,0,Lees Auto Spares,TRAINING DELIVERY,40006,Training Equ Purch,Revenue
04/06/2018,1000364,560,0,Lees Auto Spares,KEIGHLEY,40025,Scrap Cars Purch,Revenue
04/06/2018,1000363,560,0,Lees Auto Spares,LEEDS,40025,Scrap Cars Purch,Revenue
04/06/2018,RACR273276,-557,-46.61,Lex Autolease,OPERATIONS TEAM,34001,Vehicle Leasing,Revenue
04/06/2018,EXI1149391,2220.48,0,Lex Autolease,Fire Safety Prot,30100,Road Fund Licences,Revenue
04/06/2018,INV221182,912.25,0,Refreshment Systems Ltd,TRAINING DELIVERY,40502,Food,Revenue
04/06/2018,6.55363E+14,868.83,0,Yorkshire Water,CORPORATE MANAGEMENT & SUPPORT,59164,Equipment,Capital
05/06/2018,INV-5730,4308,0,Eden,CORPORATE MANAGEMENT & SUPPORT,59052,Cont-External,Capital
06/06/2018,46871,2660,0,Access Doors Systems Ltd,LEEDS,21006,Appliance Bay Doors,Revenue
06/06/2018,0940000048-066A,1908.05,0,Airwave Solutions Ltd,Information Technlgy,43026,Radio Licensing,Revenue
06/06/2018,39174,619,0,Ask,CONTROL,40003,Admin/Office Equ Pch,Revenue
06/06/2018,25745,1520.38,0,BCS Electrics Ltd,Mirfield Fire,21014,General Rep & Maint,Revenue
06/06/2018,25793,1804.21,0,BCS Electrics Ltd,PROPERTY,21013,Electrical Reps (Fr),Revenue
06/06/2018,25862,929.95,0,BCS Electrics Ltd,PROPERTY,21013,Electrical Reps (Fr),Revenue
06/06/2018,25863,1461.46,0,BCS Electrics Ltd,WAKEFIELD,21013,Electrical Reps (Fr),Revenue
06/06/2018,25854,691.83,0,BCS Electrics Ltd,South Kirkby,21013,Electrical Reps (Fr),Revenue
06/06/2018,75141095186,1909.44,0,Bradford Council,BRADFORD,28506,Refuse Collect/Disp,Revenue
06/06/2018,75141095177,611,0,Bradford Council,ODSAL,28506,Refuse Collect/Disp,Revenue
06/06/2018,75141095130,611,0,Bradford Council,FAIRWEATHER GREEN,28506,Refuse Collect/Disp,Revenue
06/06/2018,75141095168,799.76,0,Bradford Council,KEIGHLEY,28506,Refuse Collect/Disp,Revenue
06/06/2018,75141095159,799.76,0,Bradford MDC,BINGLEY,28506,Refuse Collect/Disp,Revenue
06/06/2018,75141068625,611,0,Bradford MDC,Shipley New,28506,Refuse Collect/Disp,Revenue
06/06/2018,3411,545,0,Cafe Perfection,PROPERTY,21013,Electrical Reps (Fr),Revenue
06/06/2018,140935,3656.8,0,Goliath Footwear Ltd,SUPPLIES SECTION,41500,Clothing,Revenue
06/06/2018,969721,1465,0,Gritit Ltd,VARIOUS,24000,Grounds Maintenance,Revenue
06/06/2018,1008556927,703.4,0,Hays Specialist Recruitment,FINANCE SECTION,15001,Admin - Basic Pay,Revenue
06/06/2018,16049,1048.7,0,Heavy Woollen Textile Co Ltd,SUPPLIES SECTION,41500,Clothing,Revenue
06/06/2018,174457,749.39,0,Hj Sock Group Ltd,SUPPLIES SECTION,41500,Clothing,Revenue
06/06/2018,8603961674,6797.28,0,Kirklees Council,PROPERTY,24000,Grounds Maintenance,Revenue
06/06/2018,15341,1723.89,0,Mitton Aftercare Ltd,LEEDS,21012,Heating & Mechanical,Revenue
06/06/2018,15345,559.02,0,Mitton Aftercare Ltd,STANNINGLEY,21012,Heating & Mechanical,Revenue
06/06/2018,22330,4770.61,0,Mitton Mechanical Services Ltd,PROPERTY,21012,Heating & Mechanical,Revenue
06/06/2018,MC/159,895,0,Montgomery & Coupers Ltd,PROPERTY,42511,Consultancy Fees,Revenue
06/06/2018,PSC0016335A,566.28,0,Professional Fire Systems,ILKLEY,21013,Electrical Reps (Fr),Revenue
06/06/2018,30387,647,0,R.D.Barrett,SUPPLIES SECTION,40100,Furniture,Revenue
06/06/2018,9302788540,645,0,Seton,Information Technlgy,42100,Stationery,Revenue
06/06/2018,703,625,0,SJ Facilities,KEIGHLEY,21014,General Rep & Maint,Revenue
06/06/2018,13094,4083.3,0,Warwick Int.  Computing Sys,Health & Safety,44600,Subscriptions,Revenue
07/06/2018,465685G,643.86,0,Arena Group Limited,EMPLOYMENT SERVICES,42201,Photocopier Charges,Revenue
07/06/2018,465681G,529.09,0,Arena Group Limited,Leeds Dist Com,42201,Photocopier Charges,Revenue
07/06/2018,9795300,4586.4,0,Bayford Oil,FAIRWEATHER GREEN,30200,Vehicle Fuel,Revenue
07/06/2018,9821420,3125.35,0,Bayford Oil,Cleckheaton,30200,Vehicle Fuel,Revenue
07/06/2018,9878277,4232,0,Bayford Oil,Killingbeck,30200,Vehicle Fuel,Revenue
07/06/2018,9843911,3138.44,0,Bayford Oil,HUDDERSFIELD,30200,Vehicle Fuel,Revenue
07/06/2018,9812052,4146.4,0,Bayford Oil,Shipley New,30200,Vehicle Fuel,Revenue
07/06/2018,9642652,2937.9,0,Bayford Oil,Dewsbury New,30200,Vehicle Fuel,Revenue
07/06/2018,25766,635.49,0,BCS Electrics Ltd,Dewsbury New,21013,Electrical Reps (Fr),Revenue
07/06/2018,25861,577.83,0,BCS Electrics Ltd,PROPERTY,21013,Electrical Reps (Fr),Revenue
07/06/2018,813014833,16062.86,0,Easynet Enterprise Services Ltd,Information Technlgy,43018,Wan Rental,Revenue
07/06/2018,ATC-17351,600,0,Iaai - Uk,TRAINING DELIVERY,19240,Prot/Prev Tng,Revenue
08/06/2018,25805,1059.23,0,BCS Electrics Ltd,PROPERTY,21013,Electrical Reps (Fr),Revenue
08/06/2018,C/02/088086,507.31,0,Bradford MDC,ODSAL,28502,Contract Cleaning,Revenue
08/06/2018,C/02/088087,913.23,0,Bradford MDC,FAIRWEATHER GREEN,28502,Contract Cleaning,Revenue
08/06/2018,C/02/088092,507.31,0,Bradford MDC,BRADFORD,28502,Contract Cleaning,Revenue
08/06/2018,C/02/088084,507.31,0,Bradford MDC,Shipley New,28502,Contract Cleaning,Revenue
08/06/2018,C/02/088088,1014.69,0,Bradford MDC,BRADFORD,28502,Contract Cleaning,Revenue
08/06/2018,C/02/088083,570.77,0,Bradford MDC,KEIGHLEY,28502,Contract Cleaning,Revenue
08/06/2018,15310832,576,0,Elliott Group Ltd,PONTEFRACT,21014,General Rep & Maint,Revenue
08/06/2018,136353,2250,0,Physio Med Ltd,Health & Safety,18301,Specialists Fees,Revenue
11/06/2018,R12484,2955,0,Airmax Remote,Information Technlgy,43101,Hardware Mtce&Suppor,Revenue
11/06/2018,CREDIT2,-585,0,Clean Kitchen Limited,RECRUITS,40502,Food,Revenue
11/06/2018,INV-0026,2052,0,Clean Kitchen Limited,RECRUITS,40502,Food,Revenue
11/06/2018,#1,770,0,D.V Optical (Openshaw Opticians),Health & Safety,18301,Specialists Fees,Revenue
11/06/2018,40763,3181.5,0,Dr N A L Smith (Medical Services) L,Health & Safety,42510,Client Med Fees/Exps,Revenue
11/06/2018,20855,22907.92,0,Emergency One (Uk) Ltd,CORPORATE MANAGEMENT & SUPPORT,59165,Vehicles & Plant,Capital
11/06/2018,20875,1265,0,Emergency One (Uk) Ltd,FLEET MAINTENANCE,30001,Dir Cost-Spare Parts,Revenue
11/06/2018,INV221595,812.75,0,Refreshment Systems Ltd,TRAINING DELIVERY,40502,Food,Revenue
11/06/2018,668,1650,0,SYNDAP Development,TRAINING DELIVERY,19238,Ops Res Tng,Revenue
11/06/2018,510986,1248.65,0,Tees Active Limited,TRAINING DELIVERY,19241,Service Supp Tng,Revenue
11/06/2018,ATC-17351,660,0,UK-AFI,TRAINING DELIVERY,19240,Prot/Prev Tng,Revenue
12/06/2018,ARCV196951,774,0,Alliance Automotive UK CV Ltd T/a,FLEET MAINTENANCE,30001,Dir Cost-Spare Parts,Revenue
12/06/2018,9832177,2591.5,0,Bayford Oil,LEEDS,30200,Vehicle Fuel,Revenue
12/06/2018,1500726-01,889.65,0,Crossroads Truck & Bus Ltd,FLEET MAINTENANCE,30001,Dir Cost-Spare Parts,Revenue
12/06/2018,1500808-01,746.73,0,Crossroads Truck & Bus Ltd,FLEET MAINTENANCE,30001,Dir Cost-Spare Parts,Revenue
12/06/2018,1500959-01,664.25,0,Crossroads Truck & Bus Ltd,FLEET MAINTENANCE,30001,Dir Cost-Spare Parts,Revenue
12/06/2018,1501032-01,522.3,0,Crossroads Truck & Bus Ltd,FLEET MAINTENANCE,30001,Dir Cost-Spare Parts,Revenue
12/06/2018,6593,5600,0,Delta Clean North Ltd,VARIOUS,20000,Ann Contract/Service,Revenue
12/06/2018,21227,505.55,0,Emergency One (Uk) Ltd,FLEET MANAGEMENT,30004,Rep-Ext Contractors,Revenue
12/06/2018,21225,1426.55,0,Emergency One (Uk) Ltd,FLEET MANAGEMENT,30004,Rep-Ext Contractors,Revenue
12/06/2018,21226,505.55,0,Emergency One (Uk) Ltd,FLEET MANAGEMENT,30004,Rep-Ext Contractors,Revenue
12/06/2018,21228,505.55,0,Emergency One (Uk) Ltd,FLEET MANAGEMENT,30004,Rep-Ext Contractors,Revenue
12/06/2018,21229,640.55,0,Emergency One (Uk) Ltd,FLEET MANAGEMENT,30004,Rep-Ext Contractors,Revenue
12/06/2018,21233,529.21,0,Emergency One (Uk) Ltd,FLEET MAINTENANCE,30001,Dir Cost-Spare Parts,Revenue
12/06/2018,21224,828.25,0,Emergency One (Uk) Ltd,FLEET MANAGEMENT,30004,Rep-Ext Contractors,Revenue
12/06/2018,21230,1820.85,0,Emergency One (Uk) Ltd,FLEET MANAGEMENT,30004,Rep-Ext Contractors,Revenue
12/06/2018,KEI002483,1168.9,0,Stertil UK Ltd,FLEET MAINTENANCE,30005,Workshop Equipment,Revenue
13/06/2018,39384,508.3,0,Ask,SUPPLIES SECTION,41900,Laundry,Revenue
13/06/2018,39399,770,0,Ask,SUPPLIES SECTION,40003,Admin/Office Equ Pch,Revenue
13/06/2018,SI139513,4250,0,Dale Power Solutions Ltd,VARIOUS,20000,Ann Contract/Service,Revenue
13/06/2018,SI139511,2130,0,Dale Power Solutions Ltd,VARIOUS,20000,Ann Contract/Service,Revenue
13/06/2018,74093,1586.75,0,Lsi Limited,Fire Safety Prev,45121,Safer Communities Programme Board,Revenue
13/06/2018,2785,500,0,Lupset Jubilee Hall Community Centr,Fire Safety Prev,45108,Fire Prevn Pblcty,Revenue
13/06/2018,2202,998.84,0,Rh Environmental Services Ltd,NEW CONTROL PROJECT,21012,Heating & Mechanical,Revenue
13/06/2018,145178,2713.2,0,Southcombe Brothers Ltd,SUPPLIES SECTION,41500,Clothing,Revenue
13/06/2018,168147,2150,0,Total Access,TRAINING DELIVERY,21014,General Rep & Maint,Revenue
13/06/2018,84921,4512,0,Wm Sugden & Sons Ltd,SUPPLIES SECTION,41500,Clothing,Revenue
14/06/2018,13252,1342.85,0,Ashwell Engineering Services,TRAINING DELIVERY,21012,Heating & Mechanical,Revenue
14/06/2018,9872673,4232,0,Bayford Oil,COOKRIDGE,30200,Vehicle Fuel,Revenue
14/06/2018,26369,-1650,0,Electromec Access,PROPERTY,21006,Appliance Bay Doors,Revenue
14/06/2018,57818,1650,0,Electromec Access,PROPERTY,21006,Appliance Bay Doors,Revenue
14/06/2018,"11,708",4620,0,Fitness Warehouse Ltd,SUPPLIES SECTION,40022,Gym Equip Repair/Maint,Revenue
14/06/2018,9.78118E+13,1376.25,0,Linde Material Handling,FLEET MAINTENANCE,34101,Operating Leases,Revenue
14/06/2018,124,-2702,0,Lk Management Ltd,STRATEGIC DEVELOPMENT,42590,Shipley,Revenue
14/06/2018,1884,2702,0,Lk Management Ltd,STRATEGIC DEVELOPMENT,42590,Shipley,Revenue
14/06/2018,4022848,884,0,Pure AV,TRAINING DELIVERY,20000,Ann Contract/Service,Revenue
14/06/2018,4022847,1769.1,0,Pure AV,TRAINING DELIVERY,20000,Ann Contract/Service,Revenue
14/06/2018,2199,2684,0,Rh Environmental Services Ltd,TRAINING DELIVERY,21012,Heating & Mechanical,Revenue
14/06/2018,30551,1040,0,Waterfront Manufacturing Ltd,RECRUITS,41500,Clothing,Revenue
14/06/2018,SI-118763,1010,0,Wolverson Fitness Ltd,ILKLEY,21014,General Rep & Maint,Revenue
14/06/2018,6.55374E+14,1427.11,0,Yorkshire Water,WAKEFIELD,21014,General Rep & Maint,Revenue
14/06/2018,6.55363E+14,649.99,0,Yorkshire Water,CORPORATE MANAGEMENT & SUPPORT,59164,Equipment,Capital
15/06/2018,E2009728151,3391.83,0,Allstar Business Solutions Ltd,FLEET MANAGEMENT,30200,Vehicle Fuel,Revenue
15/06/2018,1530,2400,0,Astun Technology Ltd,TRAINING DELIVERY,19241,Service Supp Tng,Revenue
15/06/2018,25626,727.42,0,BCS Electrics Ltd,ILKLEY,21013,Electrical Reps (Fr),Revenue
15/06/2018,RACR227576,-4567.2,-352.53,Lex Autolease,FLEET MANAGEMENT,34001,Vehicle Leasing,Revenue
15/06/2018,RACR269200,-21211.08,0,Lex Autolease,VARIOUS,34001,Vehicle Leasing,Revenue
15/06/2018,RACR232012,-2692.72,0,Lex Autolease,FLEET MANAGEMENT,34001,Vehicle Leasing,Revenue
15/06/2018,RACR271794,-24978.72,0,Lex Autolease,VARIOUS,34001,Vehicle Leasing,Revenue
15/06/2018,RACR269726,-3741.6,0,Lex Autolease,USAR,34001,Vehicle Leasing,Revenue
15/06/2018,RACR231958,-5000.08,0,Lex Autolease,FLEET MANAGEMENT,34001,Vehicle Leasing,Revenue
15/06/2018,MLCR079632,-1476.12,-96.51,Lex Autolease,Leeds Dist Com,34001,Vehicle Leasing,Revenue
15/06/2018,RAIN269727,6244.68,0,Lex Autolease,USAR,34001,Vehicle Leasing,Revenue
15/06/2018,RAIN231959,4734.4,0,Lex Autolease,FLEET MANAGEMENT,34001,Vehicle Leasing,Revenue
15/06/2018,EXI1152165,1225.8,0,Lex Autolease,FLEET MAINTENANCE,34001,Vehicle Leasing,Revenue
15/06/2018,RAIN274536,3114.24,201.09,Lex Autolease,FIRE INVESTIGATION,34001,Vehicle Leasing,Revenue
15/06/2018,IRIN600870,14912.16,1355.09,Lex Autolease,VARIOUS,34001,Vehicle Leasing,Revenue
15/06/2018,RAIN271795,39888.48,0,Lex Autolease,VARIOUS,34001,Vehicle Leasing,Revenue
15/06/2018,RAIN269199,28720.32,0,Lex Autolease,VARIOUS,34001,Vehicle Leasing,Revenue
15/06/2018,14320,4950,0,Salem Myer Simpson,WETHERBY,42511,Consultancy Fees,Revenue
15/06/2018,901,2000,0,Wm Projects Ltd,Rastrick,21014,General Rep & Maint,Revenue
15/06/2018,6.55363E+14,649.99,0,Yorkshire Water,CORPORATE MANAGEMENT & SUPPORT,59164,Equipment,Capital
18/06/2018,87924122,6075.12,0,Vodafone (Mobiles),Information Technlgy,43017,Corporate Mobile Phone,Revenue
19/06/2018,ARCV195786,516,0,Alliance Automotive UK CV Ltd T/a,FLEET MAINTENANCE,30001,Dir Cost-Spare Parts,Revenue
19/06/2018,E2009799172,3433.45,0,Allstar Business Solutions Ltd,VARIOUS,30200,Vehicle Fuel,Revenue
19/06/2018,39531,1356,0,Ask,FLEET MANAGEMENT,40100,Furniture,Revenue
19/06/2018,1289139,3700,0,Blackboard International B.V.,VARIOUS,43022,ICT Spares & Repairs,Revenue
19/06/2018,1500996-01,-557.73,0,Crossroads Truck & Bus Ltd,FLEET MAINTENANCE,30001,Dir Cost-Spare Parts,Revenue
19/06/2018,1501092-01,5168.26,0,Crossroads Truck & Bus Ltd,FLEET MAINTENANCE,30001,Dir Cost-Spare Parts,Revenue
19/06/2018,347551,2976.37,0,Forest Fuels Ltd,SUPPLIES SECTION,25003,Energy-Solid Fuel,Revenue
19/06/2018,1142508,55357.59,0,Home Office,OPERATIONS,43026,Radio Licensing,Revenue
19/06/2018,1142688,55357.59,0,Home Office,OPERATIONS,43026,Radio Licensing,Revenue
19/06/2018,1,214133,0,Kirklees Council,FINANCE SECTION,55005,Strategic Finance,Revenue
19/06/2018,B002RXW,712.43,0,Lockhart Catering Equipment,VARIOUS,40508,Cat Gen Equ Purch,Revenue
19/06/2018,149650,863.6,0,Nb Data Ltd,CONTROL,43106,ICT Consumables,Revenue
19/06/2018,1118263,1018.8,0,Sprue Safety Products,CORPORATE MANAGEMENT & SUPPORT,59164,Equipment,Capital
20/06/2018,SQU00000786,2810,0,AMMO & Co Ltd,SUPPLIES SECTION,41500,Clothing,Revenue
20/06/2018,SQU00000785,1260,0,AMMO & Co Ltd,SUPPLIES SECTION,41500,Clothing,Revenue
20/06/2018,25864,999.16,0,BCS Electrics Ltd,BINGLEY,21013,Electrical Reps (Fr),Revenue
20/06/2018,25857,2527.84,0,BCS Electrics Ltd,HUNSLET,21013,Electrical Reps (Fr),Revenue
20/06/2018,25855,1410.19,0,BCS Electrics Ltd,FEATHERSTONE,21013,Electrical Reps (Fr),Revenue
20/06/2018,25856,537.7,0,BCS Electrics Ltd,HUNSLET,21013,Electrical Reps (Fr),Revenue
20/06/2018,3047311472,1703.29,0,British Oxygen Co Ltd,VARIOUS,40005,Operational Equ Pch,Revenue
20/06/2018,174893,1312.42,0,Hj Sock Group Ltd,SUPPLIES SECTION,41500,Clothing,Revenue
20/06/2018,1137756515,1224.98,0,Konica Minolta,NEW CONTROL PROJECT,42201,Photocopier Charges,Revenue
20/06/2018,MR17074209,25294.08,2278.85,Lex Autolease,VARIOUS,34001,Vehicle Leasing,Revenue
20/06/2018,MRI7077064,10347.6,0,Lex Autolease,FLEET MAINTENANCE,34001,Vehicle Leasing,Revenue
20/06/2018,232071,2947.2,0,M I Supplies Ltd,VARIOUS,28501,Cleaning Consumables,Revenue
20/06/2018,520920,795.6,0,Masta,Health & Safety,40026,First Aid Equ Pch,Revenue
20/06/2018,686,750,0,SJ Facilities,NEW CONTROL PROJECT,21014,General Rep & Maint,Revenue
20/06/2018,168630,2370,0,Total Access,CORPORATE MANAGEMENT & SUPPORT,59052,Cont-External,Capital
20/06/2018,360,32300.96,0,Watershed (Roofing) Ltd,CORPORATE MANAGEMENT & SUPPORT,59052,Cont-External,Capital
20/06/2018,6.55383E+14,1427.11,0,Yorkshire Water,CORPORATE MANAGEMENT & SUPPORT,59164,Equipment,Capital
20/06/2018,6.55383E+14,958.29,0,Yorkshire Water,CORPORATE MANAGEMENT & SUPPORT,59164,Equipment,Capital
20/06/2018,6.55383E+14,958.29,0,Yorkshire Water,CORPORATE MANAGEMENT & SUPPORT,59164,Equipment,Capital
20/06/2018,6.55374E+14,958.29,0,Yorkshire Water,CORPORATE MANAGEMENT & SUPPORT,59164,Equipment,Capital
20/06/2018,6.55374E+14,1427.11,0,Yorkshire Water,CORPORATE MANAGEMENT & SUPPORT,59164,Equipment,Capital
20/06/2018,65537440000000X,1427.11,0,Yorkshire Water,CORPORATE MANAGEMENT & SUPPORT,59164,Equipment,Capital
20/06/2018,6.55374E+14,958.29,0,Yorkshire Water,CORPORATE MANAGEMENT & SUPPORT,59164,Equipment,Capital
20/06/2018,6.55374E+14,958.29,0,Yorkshire Water,CORPORATE MANAGEMENT & SUPPORT,59164,Equipment,Capital
20/06/2018,6.55383E+14,931.64,0,Yorkshire Water,CORPORATE MANAGEMENT & SUPPORT,59164,Equipment,Capital
20/06/2018,6.55374E+14,601.99,0,Yorkshire Water,CORPORATE MANAGEMENT & SUPPORT,59164,Equipment,Capital
20/06/2018,6.55374E+14,844.66,0,Yorkshire Water,CORPORATE MANAGEMENT & SUPPORT,59164,Equipment,Capital
20/06/2018,6.55255E+14,931.64,0,Yorkshire Water,CORPORATE MANAGEMENT & SUPPORT,59164,Equipment,Capital
21/06/2018,180586,680,0,Aquaforce Plumbing Solutions Ltd,MYTHOLMROYD,21014,General Rep & Maint,Revenue
21/06/2018,25888,509.2,0,BCS Electrics Ltd,Cleckheaton,21013,Electrical Reps (Fr),Revenue
21/06/2018,"9,791",755.82,0,Bella Refreshments Ltd,SUPPLIES SECTION,40514,Emergency Food,Revenue
21/06/2018,1501413-01,522.3,0,Crossroads Truck & Bus Ltd,FLEET MAINTENANCE,30001,Dir Cost-Spare Parts,Revenue
21/06/2018,1500894-01,600.23,0,Crossroads Truck & Bus Ltd,FLEET MAINTENANCE,30001,Dir Cost-Spare Parts,Revenue
21/06/2018,812726,3825,0,Fire Service College Limited,TRAINING DELIVERY,19241,Service Supp Tng,Revenue
21/06/2018,216595750,546.13,0,FUCHS LUBRICANTS (UK) LTD,FLEET MAINTENANCE,30102,Dir Cost-Oil & Lubes,Revenue
21/06/2018,4315712,5487,0,Health & Safety Executive,OPERATIONS EQUIPMENT,40005,Operational Equ Pch,Revenue
21/06/2018,34827,778.5,0,Intellitec Mv,TRAINING DELIVERY,21013,Electrical Reps (Fr),Revenue
21/06/2018,34811,778.5,0,Intellitec Mv,FLEET MAINTENANCE,21013,Electrical Reps (Fr),Revenue
21/06/2018,74708,915.06,0,Lsi Limited,SUPPLIES SECTION,41500,Clothing,Revenue
21/06/2018,15332,958.19,0,Mitton Aftercare Ltd,PONTEFRACT,21012,Heating & Mechanical,Revenue
21/06/2018,14317/2,3175.6,0,Rance Booth & Smith Architects,PROPERTY,42613,Feasibility Study,Revenue
21/06/2018,INV-3950,2014,0,Red One Limited,TRAINING DELIVERY,19241,Service Supp Tng,Revenue
21/06/2018,124201,508,0,Scotmas Ltd,SUPPLIES SECTION,28501,Cleaning Consumables,Revenue
21/06/2018,OP/M449191,827.2,0,Specialist Computer Centres,EMPLOYMENT SERVICES,42511,Consultancy Fees,Revenue
21/06/2018,4099,1155,0,The Outreach Organisation Ltd,TRAINING DELIVERY,19241,Service Supp Tng,Revenue
21/06/2018,46075,958.35,0,Willowcrete Manufacturing Company L,USAR,40015,USAR - Timber,Revenue
21/06/2018,SINV057668,768.33,0,Woodway Engineering Ltd,FLEET MAINTENANCE,30001,Dir Cost-Spare Parts,Revenue
22/06/2018,9878330,3174,0,Bayford Oil,BRADFORD,30200,Vehicle Fuel,Revenue
22/06/2018,9881243,2116,0,Bayford Oil,RAWDON,30200,Vehicle Fuel,Revenue
22/06/2018,25800,562.35,0,BCS Electrics Ltd,TODMORDEN,21013,Electrical Reps (Fr),Revenue
22/06/2018,300195954,1032,0,Freight Transport Association,FLEET MANAGEMENT,44600,Subscriptions,Revenue
22/06/2018,970011,800,0,Gritit Ltd,PROPERTY,24000,Grounds Maintenance,Revenue
22/06/2018,6283,2444.58,0,Leco Computer Supplies Ltd,SUPPLIES SECTION,43106,ICT Consumables,Revenue
22/06/2018,RACR274420,-1846.05,-87.24,Lex Autolease,Kirklees Dist Com,34001,Vehicle Leasing,Revenue
22/06/2018,MLIN075617,744,0,Lex Autolease,FLEET MANAGEMENT,34001,Vehicle Leasing,Revenue
22/06/2018,TSER456522,1780.28,0,Lex Autolease,FLEET MANAGEMENT,34002,Vhcle Leas Misc Exp,Revenue
22/06/2018,711,1290,0,SJ Facilities,TRAINING DELIVERY,21014,General Rep & Maint,Revenue
22/06/2018,10005976,-1427.11,0,Yorkshire Water,CORPORATE MANAGEMENT & SUPPORT,59164,Equipment,Capital
22/06/2018,10005976,-1387.42,0,Yorkshire Water,CORPORATE MANAGEMENT & SUPPORT,59164,Equipment,Capital
22/06/2018,9.1059E+15,10570.18,0,Yorkshire Water,VARIOUS,26500,Water - Metered,Revenue
22/06/2018,6.55362E+14,1427.11,0,Yorkshire Water,CORPORATE MANAGEMENT & SUPPORT,59164,Equipment,Capital
22/06/2018,6.55383E+14,868.83,0,Yorkshire Water,CORPORATE MANAGEMENT & SUPPORT,59164,Equipment,Capital
22/06/2018,6.55362E+14,1387.42,0,Yorkshire Water,CORPORATE MANAGEMENT & SUPPORT,59164,Equipment,Capital
22/06/2018,6.55383E+14,1427.11,0,Yorkshire Water,CORPORATE MANAGEMENT & SUPPORT,59164,Equipment,Capital
22/06/2018,6.55362E+14,1427.11,0,Yorkshire Water,CORPORATE MANAGEMENT & SUPPORT,59164,Equipment,Capital
25/06/2018,682389,1744.6,0,Barkston Plastics Ltd,FLEET MAINTENANCE,30001,Dir Cost-Spare Parts,Revenue
25/06/2018,9884429,4232,0,Bayford Oil,STANNINGLEY,30200,Vehicle Fuel,Revenue
25/06/2018,9875627,3148.8,0,Bayford Oil,MOORTOWN,30200,Vehicle Fuel,Revenue
25/06/2018,9898490,3132.01,0,Bayford Oil,Dewsbury New,30200,Vehicle Fuel,Revenue
25/06/2018,9616,779,0,Burgess And Co Ltd,FLEET MAINTENANCE,30001,Dir Cost-Spare Parts,Revenue
26/06/2018,R12523,2955,0,Airmax Remote,Information Technlgy,43103,ICT Maintenance & Support,Revenue
26/06/2018,SINV/00027209,5299.93,0,Government Actuary's Dept,FINANCE SECTION,40205,Book/Publications,Revenue
26/06/2018,119341,910,0,Keela International Ltd,SUPPLIES SECTION,41500,Clothing,Revenue
26/06/2018,42029,900,0,Leeds Pallet Co.Ltd.,TRAINING DELIVERY,40006,Training Equ Purch,Revenue
26/06/2018,RACR275282,-2585.51,-183.49,Lex Autolease,OPERATIONS TEAM,34001,Vehicle Leasing,Revenue
26/06/2018,MRI4365636,4304.76,246.24,Lex Autolease,FLEET MANAGEMENT,34001,Vehicle Leasing,Revenue
26/06/2018,EXI1158619,858.24,0,Lex Autolease,WATER OFFICE,34001,Vehicle Leasing,Revenue
26/06/2018,15614,1388.64,0,Mitton Aftercare Ltd,PROPERTY,21012,Heating & Mechanical,Revenue
26/06/2018,15585,1206.7,0,Mitton Aftercare Ltd,WAKEFIELD,21012,Heating & Mechanical,Revenue
26/06/2018,15615,1949.64,0,Mitton Aftercare Ltd,HUNSLET,21012,Heating & Mechanical,Revenue
26/06/2018,10270493,8590.4,0,UBM Uk Ltd (Building4jobs),Information Technlgy,43103,ICT Maintenance & Support,Revenue
27/06/2018,SN2869945,635.19,0,Berendsen UK Ltd,SUPPLIES SECTION,41900,Laundry,Revenue
27/06/2018,INV-0041,2160,0,Clean Kitchen Limited,RECRUITS,40502,Food,Revenue
27/06/2018,970010,1318.73,0,Gritit Ltd,VARIOUS,24000,Grounds Maintenance,Revenue
27/06/2018,970012,1465,0,Gritit Ltd,VARIOUS,24000,Grounds Maintenance,Revenue
27/06/2018,8603996173,575,0,Kirklees Council,FINANCE SECTION,55005,Strategic Finance,Revenue
27/06/2018,70009713,11780,0,Leeds City College,TRAINING DELIVERY,19241,Service Supp Tng,Revenue
27/06/2018,70009787,3800,0,Leeds City College,TRAINING DELIVERY,19241,Service Supp Tng,Revenue
27/06/2018,15578,1949.64,0,Mitton Aftercare Ltd,HUNSLET,21012,Heating & Mechanical,Revenue
27/06/2018,INV-1588(W1619-0,3605.66,0,Robert Whetham Associates,PROPERTY,42511,Consultancy Fees,Revenue
27/06/2018,3,2140,0,The Hideaway Cafe Bar,CORPORATE SERVICES,40215,Annual Review,Revenue
27/06/2018,TK122852,4209.1,0,Thomas Kneale & Co Ltd,Fire Safety Prev,45108,Fire Prevn Pblcty,Revenue
28/06/2018,SQU00000785,814,0,AMMO & Co Ltd,SUPPLIES SECTION,41500,Clothing,Revenue
28/06/2018,A9980135836,7952.53,0,Ats Euromaster Ltd,FLEET MANAGEMENT,30000,Tyre Purchase,Revenue
28/06/2018,BC-05-18-S1998,21427.27,0,Bristol Care,SUPPLIES SECTION,41900,Laundry,Revenue
28/06/2018,2018653,-510,0,Cleanbright (Leeds) Ltd,VARIOUS,28500,Window Cleaning,Revenue
28/06/2018,2019552,3460,0,Cleanbright (Leeds) Ltd,VARIOUS,28500,Window Cleaning,Revenue
28/06/2018,21129,1323.87,0,Emergency One (Uk) Ltd,TRAINING DELIVERY,19243,Tech Svcs Tng,Revenue
28/06/2018,4719368,1015,0,Johnston Publishing (North),PUBLIC INFORMATION,45112,Gen Advertising,Revenue
28/06/2018,BR090987,1108.05,0,L A Brook Ltd,VARIOUS,28501,Cleaning Consumables,Revenue
28/06/2018,285586,15570.5,0,Medtree,CORPORATE MANAGEMENT & SUPPORT,59164,Equipment,Capital
28/06/2018,105244,3774.39,0,Redfern Travel Ltd,FINANCE SECTION,35000,Public Transport,Revenue
28/06/2018,145261,2955.1,0,Southcombe Brothers Ltd,SUPPLIES SECTION,41500,Clothing,Revenue
28/06/2018,CD20181016223,1581.98,0,Survitec Service & Distribution Ltd,OPERATIONS EQUIPMENT,40005,Operational Equ Pch,Revenue
28/06/2018,9786,1238,0,T Kirk Forestry,National Resilience Distributed Learning,45119,USAR Chainsaw Recert,Revenue
29/06/2018,716,510,0,SJ Facilities,TRAINING DELIVERY,21014,General Rep & Maint,Revenue
